{"text_format":"1","workbook":"xlsx","n_sheets":6,"sheets":["機械装置入力シート（ICT肉用牛肥育用）","出力シート（ICT 別添6-1）","まとめシート（ICT 別添6）","項目リスト","機械装置リスト","機械装置リスト_隠し"],"not_rendered":{"charts":0,"images":5,"macros":1,"external_links":1,"defined_names":84,"comments":1,"pivot_tables":0},"unopened":[],"bounds":{"document_bytes":16777216,"sheet_cells":100000,"rows_first":2000,"rows_last":500,"rows_between":2000,"halvings":0,"cell_chars":16384,"cell_head_chars":4096},"cells_cut":0,"cells_raw":0,"read":"whole","date_system":"1900"}

{"sheet":"機械装置入力シート（ICT肉用牛肥育用）","index":0,"n_rows":171,"n_cols":20,"rows_kept":171,"cut":false,"hidden":false,"merged":[[56,17,56,18],[57,17,57,18],[60,17,60,18],[61,17,61,18],[62,17,62,18],[63,17,63,18],[64,17,64,18],[65,17,65,18],[71,13,71,14],[57,15,57,16],[60,15,60,16],[61,15,61,16],[62,15,62,16],[63,15,63,16],[64,15,64,16],[65,15,65,16],[57,12,57,13],[60,12,60,13],[58,6,58,13],[56,6,56,7],[48,2,48,3],[63,2,63,3],[56,12,56,13],[121,10,121,11],[120,10,120,11],[119,10,119,11],[118,10,118,11],[115,10,115,11],[116,10,116,11],[117,10,117,11],[112,10,112,11],[111,10,111,11],[114,10,114,11],[110,10,110,11],[113,10,113,11],[77,11,77,12],[78,11,78,12],[79,11,79,12],[79,13,79,14],[64,6,64,7],[65,6,65,7],[76,4,76,5],[76,13,76,14],[97,7,97,9],[73,15,73,16],[72,13,72,14],[47,12,47,13],[48,12,48,13],[49,12,49,13],[92,11,92,12],[92,13,92,14],[85,6,85,7],[90,11,90,12],[80,11,80,12],[84,5,84,6],[78,4,78,5],[89,4,89,5],[91,11,91,12],[71,11,71,12],[72,11,72,12],[75,11,75,12],[90,13,90,14],[76,11,76,12],[84,2,84,4],[92,4,92,5],[79,2,79,3],[79,4,79,5],[78,2,78,3],[80,2,80,3],[91,4,91,5],[77,4,77,5],[85,15,85,16],[84,11,84,13],[84,14,84,15],[87,11,87,12],[87,13,87,14],[88,11,88,12],[88,13,88,14],[89,11,89,12],[89,13,89,14],[91,2,91,3],[91,13,91,14],[77,13,77,14],[78,13,78,14],[80,13,80,14],[123,10,123,11],[113,4,113,8],[112,4,112,8],[87,4,87,5],[112,2,112,3],[90,2,90,3],[90,4,90,5],[88,4,88,5],[72,4,72,5],[72,2,72,3],[75,2,75,3],[88,2,88,3],[77,2,77,3],[111,4,111,8],[111,2,111,3],[92,2,92,3],[110,2,110,3],[110,4,110,8],[104,5,104,12],[109,10,109,11],[102,10,102,11],[73,6,73,7],[89,2,89,3],[76,2,76,3],[147,0,147,12],[87,2,87,3],[118,2,118,3],[129,2,129,12],[124,2,124,3],[120,2,120,3],[121,2,121,3],[63,10,63,11],[71,4,71,5],[122,2,122,3],[127,8,127,9],[118,4,118,8],[127,10,127,11],[114,2,114,3],[128,2,128,11],[115,2,115,3],[115,4,115,8],[113,2,113,3],[122,10,122,11],[125,10,125,11],[124,4,124,8],[124,10,124,11],[123,2,123,3],[123,4,123,8],[151,18,154,18],[153,14,154,14],[153,15,154,15],[153,16,154,16],[151,9,154,9],[151,0,152,5],[151,7,152,8],[153,0,154,0],[153,7,154,7],[151,14,152,16],[151,17,154,17],[45,12,46,13],[47,4,47,5],[122,4,122,8],[125,2,125,3],[125,4,125,8],[119,2,119,3],[119,4,119,8],[116,2,116,3],[116,4,116,8],[117,2,117,3],[117,4,117,8],[120,4,120,8],[121,4,121,8],[60,8,60,9],[60,10,60,11],[51,2,51,3],[51,4,51,5],[51,6,51,7],[51,8,51,9],[52,2,52,3],[56,8,56,9],[48,4,48,5],[49,2,49,3],[114,4,114,8],[1,9,1,10],[4,6,4,7],[5,6,5,7],[3,6,3,7],[13,9,13,10],[12,9,12,10],[20,8,20,10],[12,11,12,14],[13,11,13,14],[15,11,15,14],[15,8,15,10],[2,6,2,7],[6,6,6,7],[1,12,1,13],[1,6,1,8],[2,1,2,5],[17,1,17,5],[21,8,21,10],[25,1,25,10],[40,2,40,4],[42,2,42,4],[48,6,48,7],[48,8,48,9],[49,15,49,16],[45,15,46,16],[47,15,47,16],[48,15,48,16],[47,2,47,3],[47,10,47,11],[47,6,47,7],[47,8,47,9],[46,8,46,9],[45,2,46,3],[45,4,46,5],[45,6,46,7],[42,5,42,6],[48,10,48,11],[46,10,46,11],[3,1,3,5],[4,1,4,5],[5,1,5,5],[6,1,6,5],[18,1,18,5],[40,5,40,9],[27,1,27,10],[26,1,26,10],[22,8,22,10],[45,8,45,11],[60,2,60,3],[57,2,57,3],[50,6,50,7],[50,8,50,9],[61,8,61,9],[51,10,51,11],[60,4,60,5],[52,4,52,9],[57,10,57,11],[56,10,56,11],[57,8,57,9],[50,2,50,3],[56,2,56,3],[61,4,61,5],[50,10,50,11],[64,2,64,3],[65,2,65,3],[75,4,75,5],[65,4,65,5],[61,12,61,13],[63,6,63,7],[61,2,61,3],[62,2,62,3],[71,2,71,3],[75,13,75,14],[64,4,64,5],[64,8,64,9],[64,10,64,11],[63,4,63,5],[63,12,63,13],[64,12,64,13],[65,12,65,13],[65,8,65,9],[65,10,65,11],[63,8,63,9],[102,15,102,16],[49,8,49,9],[61,10,61,11],[62,12,62,13],[49,6,49,7],[49,10,49,11],[55,4,55,11],[61,6,61,7],[62,6,62,7],[49,4,49,5],[57,6,57,7],[60,6,60,7],[50,15,50,16],[51,15,51,16],[56,4,56,5],[57,4,57,5],[50,4,50,5],[62,4,62,5],[62,8,62,9],[62,10,62,11],[56,15,56,16],[50,12,50,13],[51,12,51,13],[80,4,80,5]]}
["ステージ１：申請概要の入力(肉用牛肥育用)",null,null,null,null,null,null,null,null,"管理申し送り事項欄"]
[null,null,null,null,null,null,"↓該当するものに「○」をプルダウン選択。",null,null,null,null,null,"出力シート"]
[null,"申請する内容",null,null,null,null,"申請区分",null,null,"ステージ２\n（機械装置）","ステージ３\n（施設整備等）",null,"出力シート\n（ICT 別添6-1）","まとめシート\n（ICT 別添6）"]
[null,"①　餌寄せロボット、行動監視装置（肥育）、稲わら細断機、行動監視装置（放牧）、移動式ほ乳機",null,null,null,null,null,null,null,"可能",null,null,"出力","出力"]
[null,"②　ほ乳ロボット（通常タイプ：レール式で無いもの）、自走式配餌車、 自動離脱装置付きミルカー",null,null,null,null,null,null,null,"可能",null,null,"出力","出力"]
[null,"②　自動給餌機（濃厚飼料用）、自動給餌機（濃厚・粗飼料用）、自走式配餌車、ほ乳ロボット（据え置き式、レール式を含む）、バーンスクレーパー、敷料散布機",null,null,null,null,null,null,null,"可能",null,null,"出力","出力"]
[null,"④　上記③と一体的な補改修・増築等",null,null,null,null,null,null,null,null,"可能",null,null,null,"出力","出力","出力"]
[]
[]
["ステージ２：機械装置の入力(肉用牛肥育用)"]
[]
[]
[null,null,null,null,null,null,null,null,"応援会議番号：",null,null,"←県内の会議整理番号を入力"]
[null,null,null,null,null,null,null,null,"都道府県名：",null,null,"　※プルダウンで選択"]
[]
[null,null,null,null,null,null,null,"申込年月日",null,null,null,"←「yyyy/mm/dd」で入力"]
[]
["応援会議名"]
["会議の代表者名",null,null,null,null,null,"殿"]
[]
[null,null,null,null,null,null,null,"住所"]
[null,null,null,null,null,null,null,"法人名称又は氏名"]
[null,null,null,null,null,null,null,"（法人の場合 代表者名）"]
[]
[]
[null,"畜産経営体生産性向上対策事業（ICT化等機械装置等導入事業）肉用牛肥育用"]
[null,"要望調査票作成用入力シート"]
[]
[]
[]
[]
[null,"１　経営の概況（令和５年５月１日現在）"]
[]
[null,null,"肥育牛頭数(常時)",null,null,"頭"]
[null,null,"労働力",null,null,"人"]
[null,null,"年間総労働時間",null,null,"時間"]
[]
[null,"２　機械装置の導入関係"]
[null,"（１）搾乳方式の改善"]
[null,null,"①現在の状況"]
[null,null,"現状の搾乳方式：",null,null,null,null,null,null,null,"【必須】"]
[]
[null,null,"自動乳頭洗浄機の保有：",null,null,null,null,"←現在保有の場合に「○」をプルダウンで選択。"]
[]
[null,null,"②導入希望の機械装置"]
[null,null,"機械装置の種類",null,"搾乳ロボット",null,"ミルキングパーラー",null,"搾乳ユニット搬送レール",null,null,null,"ミルカー\n自動離脱装置",null,null,"自動乳頭洗浄機"]
[null,null,null,null,null,null,null,null,"自動搬送方式",null,"手動搬送方式"]
[null,null,"機械装置のメーカー名"]
[null,null,"型番"]
[null,null,"台(式)数"]
[null,null,"見積金額（税抜）の計"]
[null,null,"消費税額"]
[null,null,"従来の搾乳方式"]
[]
[null,"（１）給餌方式の改善"]
[null,null,"①現在の状況",null,"↓現在保有の機械装置に「○」をプルダウン選択。全て未選択の場合は「人力による給餌方式」が自動選択。"]
[null,null,"  機械装置の種類",null,"自動給餌機（濃厚・粗飼料用）",null,"自動給餌機（濃厚飼料用）",null,"餌寄せロボット",null,"自走式配餌車",null,"稲わら細断機",null,null,"ほ乳ロボット（据え置き式、レール式を含む）",null,"移動式ほ乳機"]
[null,null,"  機器の保有状況"]
[null,null,"  飼料給与関係機械装置の保有状況："]
[null,null,"②導入希望の機械装置",null,"（給餌）",null,0,null,null,null,null,null,null,null,null,"（ほ乳）"]
[null,null,"機械装置の種類",null,"自動給餌機（濃厚・粗飼料用）",null,"自動給餌機（濃厚飼料用）",null,"餌寄せロボット",null,"自走式配餌車",null,"稲わら細断機",null,null,"ほ乳ロボット（据え置き式、レール式を含む）",null,"移動式ほ乳機"]
[null,null,"機械装置のメーカー名"]
[null,null,"型式"]
[null,null,"台(式)数"]
[null,null,"見積金額（税抜）の計"]
[null,null,"消費税額"]
[]
[]
[null,"（２）家畜飼養管理の改善"]
[null,null,"（肥育管理）",null,"↓現在保有の機械装置に「○」をプルダウン選択。\n",null,null,null,null,null,null,"（放牧管理）",null,"↓現在保有の機械装置に「○」をプルダウン選択。"]
[null,null,"①現在の状況",null,"全て未選択の場合は「人力による観察方式」が自動選択。",null,null,null,null,null,null,"①現在の状況",null,"全て未選択の場合は「人力による観察方式」が自動選択。"]
[null,null,"　機械装置の種類",null,"行動監視装置（肥育）",null,null,null,null,null,null,"　機械装置の種類",null,"行動監視装置（放牧）"]
[null,null,"　機器の保有状況",null,null,null,null,null,null,null,null,"　機器の保有状況"]
[null,null,"　家畜飼養管理機械装置の保有状況：",null,null,null,null,null,null,null,null,"　放牧管理機械装置の保有状況："]
[null,null,"②導入希望の機械装置",null,null,null,null,null,null,null,null,"②導入希望の機械装置"]
[null,null,"機械装置の種類",null,"行動監視装置（肥育）",null,null,null,null,null,null,"機械装置の種類",null,"行動監視装置（放牧）"]
[null,null,"機械装置のメーカー名",null,null,null,null,null,null,null,null,"機械装置のメーカー名"]
[null,null,"型式",null,null,null,null,null,null,null,null,"型式"]
[null,null,"台(式)数",null,null,null,null,null,null,null,null,"台(式)数"]
[null,null,"見積金額（税抜）の計",null,null,null,null,null,null,null,null,"見積金額（税抜）の計"]
[null,null,"消費税額",null,null,null,null,null,null,null,null,"消費税額"]
[]
[null,null,"（除糞作業）",null,"↓現在保有の機械装置に「○」をプルダウン選択。",null,null,null,null,null,null,"（敷料散布作業）",null,null,"↓現在保有の機械装置に「○」をプルダウン選択。"]
[null,null,"①現在の状況",null,"全て未選択の場合は「バーンスクレーパーによらない除糞」が自動選択。",null,null,null,null,null,null,"①現在の状況",null,"　　　　　 ","全て未選択の場合は「人力による敷料散布」が自動選択。"]
[null,null,"バーンスクレーパーの保有：",null,null,null,null,null,null,null,null,"敷料散布機の保有："]
[null,null,"　家畜飼養管理機械装置の保有状況：",null,null,null,null,null,null,null,null,"　家畜飼養管理機械装置の保有状況："]
[null,null,"②導入希望の機械装置",null,null,null,null,null,null,null,null,"②導入希望の機械装置"]
[null,null,"機械装置の種類",null,"バーンスクレーパー",null,null,null,null,null,null,"機械装置の種類",null,"敷料散布機"]
[null,null,"機械装置のメーカー名",null,null,null,null,null,null,null,null,"機械装置のメーカー名"]
[null,null,"型式",null,null,null,null,null,null,null,null,"型式"]
[null,null,"台(式)数",null,null,null,null,null,null,null,null,"台(式)数"]
[null,null,"見積金額（税抜）の計",null,null,null,null,null,null,null,null,"見積金額（税抜）の計"]
[null,null,"消費税額",null,null,null,null,null,null,null,null,"消費税額"]
[]
[null,"注１：導入を希望する機械装置の種類ごとに必要事項を入力します。"]
[null,"　２：見積金額(税抜)の計は、消費税を除いた機械装置の導入価格の合計額を入力して下さい。"]
[]
[null,"３　機械装置の導入方式",null,null,null,null,null,null,null,null,"　※プルダウンで選択"]
[null,"注１：リース方式か、購入方式か記入する。"]
[null,"　２：購入方式を選択する場合は、別紙10のⅠの第１の12の（３）のアに取り組む経営体に限る。"]
[]
[null,"４　機械装置導入により想定される労働時間の削減効果",null,null,null,null,null,null,null,null,null,null,null,null,null,null,null,null,"申請②","申請②と③"]
[null,"（１）労働負担軽減経営体における削減労働時間",null,null,null,null,null,"チェックボタン押下後、自動計算されます",null,"時間","【自動計算】\n肥育牛１頭当たり削減労働時間×肥育常時頭数×12/20、小数点以下四捨五入",null,null,null,"時間","←手入力での削除時間の申請が必要な場合、こちらに記入してください。",null,null,360]
[null,null,"※削減労働時間は、別添４の「労働時間削減効果分析」の第３「削減が期待される年間労働時間の考え方」に基づき算出します"]
[null,"（２）削減労働時間の検証方法",null,null,null,null,null,null,null,null,null,null,null,"　※プルダウンで選択"]
[]
[]
[]
[null,"５　機械装置の導入に伴う飼養管理の改善への取組"]
[null,null,null,null,null,null,null,null,null,"該当の取組がある場合、「○」をプルダウン選択↓","(参考)左記の回答根拠を\n示す添付資料の例",null,"(参考)\n係数"]
[null,null,"\n１　後継者",null,"①　今後とも安定的な経営継続が見込まれる経\n　営として(1)又は(2)に該当する経営\n　(1)主たる経営者が45歳未満\n　(2)主たる経営者が45歳以上の場合、後継者\n　　となる子息・子女又は概ね15歳以上の後\n　　継者の確保",null,null,null,null,null,"年齢の確認できるもの、家族労働協定、農業経営改善計画認定申請書、畜産経営診断結果、酪農・畜産専門紙や業界誌の紹介記事、経営コンクールの事例紹介資料　等",null,0.9]
[null,null,null,null,"②　①に該当しない場合、後継者の確保に向け\n　た取組の実施",null,null,null,null,null,"法人経営の定款　等",null,0.95]
[null,null,"２　乳用後継牛",null,"①　自家の牛群更新に必要な乳用牛を概ね自家\n　生産により確保する経営",null,null,null,null,null,"牛群検定成績表（乳検成績表）、畜産経営診断結果、酪農・畜産専門紙や業界誌の紹介記事、経営コンクールの事例紹介資料　等",null,0.9]
[null,null,null,null,"②　①以外の場合、自家の牛群更新に必要な乳\n　用牛の自家生産に取り組む経営",null,null,null,null,null,"酪農・畜産専門紙や業界誌の紹介記事、経営コンクールの事例紹介資料　等",null,0.95]
[null,null,"３　飼養管理",null,"飼養管理の高度化に取り組む経営",null,null,null,null,null,null,null,0.9]
[null,null,"４　その他",null,"①　地震・台風等の災害等に備えた、地域にお\n　ける互助協定に参加する経営",null,null,null,null,null,"災害互助協定書　等",null,0.95]
[null,null,"（複数回答可）",null,"②　畜産（酪農）従事者の疾病時等の経営継続に\n　備えた、地域における互助協定に参加する経営",null,null,null,null,null,"地域の酪農家が相互で締結している疾病時等の互助協定書　等",null,0.95]
[null,null,null,null,"③　地震・台風等により被災した経営",null,null,null,null,null,"罹災証明書、被災した時に撮影した畜産施設等の写真　等",null,0.9]
[null,null,null,null,"④　畜産・酪農収益力強化整備等特別対策事業\n　による補助を受けていない経営",null,null,null,null,null,null,null,0.95]
[null,null,null,null,"⑤　牛群検定に加入している経営",null,null,null,null,null,"牛群検定成績表（乳検成績表）",null,0.9]
[null,null,null,null,"⑥　供用期間の延長等を図るため、自給飼料の\n　飼料分析や技術者との意見交換を定期的に行\n　う経営",null,null,null,null,null,"自給飼料の分析結果、地域の支援組織や団体等が開催する自給飼料に関する勉強会の資料及び出席者名簿　等",null,0.95]
[null,null,null,null,"⑦　応援会議の構成員の中で、JGAP家畜・\n　畜産物の認証農場又は、GAP取得チャレンジシ\n　ステムの確認済み農場がある場合",null,null,null,null,null,"JGAP確認書(写)、GAP取得チャレンジの取組農場一覧リストの出力結果　等",null,0.95]
[null,null,null,null,"⑧　応援会議の構成員の中で、農場HACCP推\n　進農場として指定されている経営がある場合",null,null,null,null,null,"農場HACCP推進農場指定書(写)、農場HACCP認証書(写)　等",null,0.95]
[null,null,null,null,"⑨　環境と調和のとれた食料システムの確立のための環境負荷低減事業活動の促進等に関する法律（令和４年法律第 37 号。）に基づく環境負荷低減事業活動実施計画又は特定環境負荷低減事業活動実施計画の認定を受けている経営",null,null,null,null,null,null,null,0.9]
[null,null,null,null,"⑩　作業安全に関する取組を実施している経営",null,null,null,null,null,"「農作業安全シート」の提出",null,0.9]
[null,null,null,null,"⑪　その他、地域への貢献度が高い取組と事業\n　実施主体が特に認めた取組に参加する経営",null,null,null,null,null,"経営コンクールの表彰状　等",null,0.9]
[null,null,null,null,null,null,null,null,0]
[null,"６　労働時間削減効果分析の結果",null,null,null,null,null,"【自動計算】",null,null,"※チェックボタン押下後、自動計算されます",null,null,null,null,null,null,null,0]
[null,null,"補助金申請額（税抜）の合計額／削減が期待される年間総労働時間（時間）×係数／10000、小数点第４位を切り捨て"]
[null,null,"※費用対効果分析の結果は、別添４の「労働時間削減効果分析」の第２「評価点数の算出式」に基づき算出します。"]
[]
[]
[]
[]
[]
[]
[]
[]
[]
[]
[]
[]
[]
[]
["ステージ３：酪農労働省力化推進施設等緊急整備対策事業（労働負担軽減事業）施設整備要望の入力"]
[]
["１　機械装置の導入と一体的な施設整備の必要性"]
[]
[]
["２　施設整備の概要等"]
["（１）事業の内容等",null,null,null,null,null,null,"≪施設整備の要望入力≫"]
["≪（参考）導入機械装置≫",null,null,null,null,null,null,"事業内容",null,"建設面積の\n増加の\n有無",null,"竣工予定","事業費","【ｺｽﾄ分析用】\n単価","負担区分",null,null,"補助率","備考"]
[null,null,null,null,null,null,null,null,null,null,null,"又は","（税抜）","（/㎡）"]
["機械装置名","本体価格","数量","【ｺｽﾄ分析用】\n単価","補助事業",null,null,"種目\n\n注：④","施設の構造、",null,"有の\n場合の","完了年月日",null,null,"補助金\n\n注：⑥","自己資金","その他"]
[null,"（税抜）","（式・台）","注：①","の活用状況\n\n注：②","他事業活用の場合の事業名\n注：③",null,null,"規格、能力等",null,"面積\n（㎡）",null,null,"注：⑤"]
[null,null,null,null,null,null,"⇒",null,null,"無"]
[null,null,null,null,null,null,"⇒",null,null,"無"]
[null,null,null,null,null,null,"⇒",null,null,"無"]
[null,null,null,null,null,null,"⇒",null,null,"無"]
[null,null,null,null,null,null,"⇒",null,null,"無"]
[]
["（入力上の注意点）"]
["　①　≪（参考）導入機械装置≫の【コスト分析用】単価の欄は、本事業により機械装置を導入する場合にあって、コスト分析（畜産業振興事業の実施についてに規定するコスト分析。以下同じ）を実施するための単価として"]
["　　コスト分析基準の対象経費と同等の経費の単価について入力すること。"]
["　②　≪（参考）導入機械装置≫の補助事業の活用状況は必ず選択すること。"]
["　③　②で他事業を選択した場合は、右欄に事業名を入力すること。"]
["　④　≪施設整備の要望入力≫の事業内容の種目欄は、計画内容が明らかとなるよう実施内容を細目に分けて具体的に記入すること"]
["　⑤　≪施設整備の要望入力≫の【コスト分析用】単価の欄は、建築面積が増加する場合にのみ入力することとし、コスト分析を実施するための単価として、建築面積の増加部分に係る施設本体の建設に必要な経費（消費税、"]
["　　代行施行管理料、製造請負管理料、実施設計費、既存施設の撤去費用、ストール等附帯する経費は除く。）を建築面積の増加部分に係る面積で除したものとする。"]
["　⑥　施設整備に係る補助金額は、施設整備が必要な機械装置の導入費用（本体価格）の１/２を上限とする。"]
["　※　施設の整備が必要な機械装置は平成３０年度に導入するものに限るものとする。"]

{"sheet":"出力シート（ICT 別添6-1）","index":1,"n_rows":142,"n_cols":15,"rows_kept":142,"cut":false,"hidden":false,"merged":[[39,14,39,15],[40,14,40,15],[41,14,41,15],[42,14,42,15],[43,14,43,15],[44,14,44,15],[50,10,50,11],[51,10,51,11],[52,10,52,11],[39,12,39,13],[40,12,40,13],[41,12,41,13],[42,12,42,13],[43,12,43,13],[44,12,44,13],[39,10,39,11],[40,10,40,11],[41,10,41,11],[42,10,42,11],[43,10,43,11],[44,10,44,11],[104,1,104,14],[2,9,2,14],[12,1,12,14],[14,1,14,14],[25,6,25,9],[27,2,28,3],[27,4,28,5],[27,6,28,7],[27,8,27,9],[27,10,28,11],[27,12,28,13],[4,11,4,14],[29,2,29,3],[29,4,29,5],[29,6,29,7],[29,10,29,11],[29,12,29,13],[30,2,30,3],[30,4,30,5],[30,6,30,7],[30,10,30,11],[30,12,30,13],[53,10,53,11],[54,10,54,11],[33,10,33,11],[33,12,33,13],[37,6,37,9],[31,2,31,3],[31,4,31,5],[31,6,31,7],[31,10,31,11],[31,12,31,13],[32,2,32,3],[32,4,32,5],[32,6,32,7],[32,10,32,11],[32,12,32,13],[39,4,39,5],[40,2,40,3],[40,4,40,5],[41,2,41,3],[41,4,41,5],[39,6,39,7],[40,6,40,7],[41,6,41,7],[33,2,33,3],[33,4,33,5],[33,6,33,7],[42,2,42,3],[42,4,42,5],[43,2,43,3],[43,4,43,5],[44,2,44,3],[44,4,44,5],[42,6,42,7],[43,6,43,7],[44,6,44,7],[52,2,52,3],[53,2,53,3],[48,6,48,9],[50,2,50,3],[51,2,51,3],[50,4,50,6],[51,4,51,6],[52,4,52,6],[53,4,53,6],[50,7,50,8],[51,7,51,8],[52,7,52,8],[53,7,53,8],[59,7,59,9],[72,2,72,3],[72,4,72,8],[73,2,73,3],[73,4,73,8],[54,2,54,3],[55,2,55,3],[66,5,66,13],[54,4,54,6],[55,4,55,6],[54,7,54,8],[55,7,55,8],[55,10,55,11],[77,2,77,3],[77,4,77,8],[78,2,78,3],[78,4,78,8],[79,2,79,3],[79,4,79,8],[74,2,74,3],[74,4,74,8],[75,2,75,3],[75,4,75,8],[76,2,76,3],[76,4,76,8],[84,4,84,8],[87,2,87,3],[87,4,87,8],[89,8,89,9],[97,2,97,14],[102,2,102,14],[80,2,80,3],[80,4,80,8],[81,2,81,3],[81,4,81,8],[82,4,82,8],[83,4,83,8],[86,2,86,3],[86,4,86,8],[85,2,85,3],[85,4,85,8],[112,1,112,14],[113,1,113,14],[114,1,114,14],[115,1,115,14],[116,1,116,14],[117,1,117,14],[105,1,105,14],[106,1,106,14],[108,1,108,14],[109,1,109,14],[110,1,110,14],[111,1,111,14],[124,1,124,14],[125,1,125,14],[126,1,126,14],[127,1,127,14],[128,1,128,14],[129,1,129,14],[118,1,118,14],[119,1,119,14],[120,1,120,14],[121,1,121,14],[122,1,122,14],[123,1,123,14],[137,1,137,14],[138,1,138,14],[139,1,139,14],[140,1,140,14],[141,1,141,14],[130,1,130,14],[131,1,131,14],[132,1,132,14],[133,1,133,9],[134,1,134,9],[135,1,135,9]]}
[null,"畜産経営体生産性向上対策事業（ICT化等機械装置等導入事業）用"]
[null,"別添 6-1"]
[null,null,null,null,null,null,null,null,"都道府県名：",{"$f":"IF('機械装置入力シート（ICT肉用牛肥育用）'!J14=0,\"\",'機械装置入力シート（ICT肉用牛肥育用）'!J14)","v":""}]
[]
[null,null,null,null,null,null,null,null,null,null,null,{"$f":"IF(OR('機械装置入力シート（ICT肉用牛肥育用）'!$G$4=\"○\",'機械装置入力シート（ICT肉用牛肥育用）'!$G$5=\"○\",'機械装置入力シート（ICT肉用牛肥育用）'!$G$6=\"○\"),IF('機械装置入力シート（ICT肉用牛肥育用）'!$I$16=0,\"\",'機械装置入力シート（ICT肉用牛肥育用）'!$I$16),\"\")","v":""}]
[null,{"$f":"IF(OR('機械装置入力シート（ICT肉用牛肥育用）'!$G$4=\"○\",'機械装置入力シート（ICT肉用牛肥育用）'!$G$5=\"○\",'機械装置入力シート（ICT肉用牛肥育用）'!$G$6=\"○\"),IF('機械装置入力シート（ICT肉用牛肥育用）'!$B$18=0,\"\",'機械装置入力シート（ICT肉用牛肥育用）'!$B$18),\"\")","v":""}]
[null,{"$f":"IF(OR('機械装置入力シート（ICT肉用牛肥育用）'!$G$4=\"○\",'機械装置入力シート（ICT肉用牛肥育用）'!$G$5=\"○\",'機械装置入力シート（ICT肉用牛肥育用）'!$G$6=\"○\"),IF('機械装置入力シート（ICT肉用牛肥育用）'!$B$19=0,\"\",'機械装置入力シート（ICT肉用牛肥育用）'!$B$19)&\"  殿\",\"\")","v":""}]
[]
[null,null,null,null,null,null,null,"所在地",null,{"$f":"IF('機械装置入力シート（ICT肉用牛肥育用）'!$I$21=0,\"\",'機械装置入力シート（ICT肉用牛肥育用）'!$I$21)","v":""}]
[null,null,null,null,null,null,null,"法人名称又は氏名",null,{"$f":"IF('機械装置入力シート（ICT肉用牛肥育用）'!I22=0,\"\",'機械装置入力シート（ICT肉用牛肥育用）'!I22)","v":""}]
[null,null,null,null,null,null,null,"（法人の場合 代表者名）",null,{"$f":"IF('機械装置入力シート（ICT肉用牛肥育用）'!I23=0,\"\",'機械装置入力シート（ICT肉用牛肥育用）'!I23)","v":""}]
[]
[null,"畜産経営体生産性向上対策事業（ICT化等機械装置等導入事業）要望調査票"]
[]
[null,"　畜産経営体生産性向上対策（ICT化等機械装置等導入事業）において、労働負担軽減のための機械装置を導入したいので、要望書を提出する。"]
[]
[null,"１　経営の概況（令和５年５月１日現在）"]
[]
[null,null,"肥育牛頭数(常時)",null,{"$f":"IF('機械装置入力シート（ICT肉用牛肥育用）'!E34=0,\"\",'機械装置入力シート（ICT肉用牛肥育用）'!E34)","v":""},"頭"]
[null,null,"労働力",null,{"$f":"IF('機械装置入力シート（ICT肉用牛肥育用）'!E35=0,\"\",'機械装置入力シート（ICT肉用牛肥育用）'!E35)","v":""},"人"]
[null,null,"年間総労働時間",null,{"$f":"IF('機械装置入力シート（ICT肉用牛肥育用）'!E36=0,\"\",'機械装置入力シート（ICT肉用牛肥育用）'!E36)","v":""},"時間",null,"飼養管理労働時間で計算"]
[]
[null,"２　機械装置の導入関係"]
[null,"（１）搾乳方式の改善"]
[null,null,"①現在の状況"]
[null,null,null,null,null,"搾乳方式：",{"$f":"IF('機械装置入力シート（ICT肉用牛肥育用）'!F41=0,\"\",'機械装置入力シート（ICT肉用牛肥育用）'!F41)","v":""}]
[null,null,"②導入希望の機械装置"]
[null,null,"機械装置の種類",null,"搾乳ロボット",null,"ミルキングパーラー",null,"搾乳ユニット搬送レール",null,"ミルカー自動離脱装置",null,"自動乳頭洗浄機"]
[null,null,null,null,null,null,null,null,"自動","手動"]
[null,null,"機械装置のメーカー名",null,{"$f":"IF('機械装置入力シート（ICT肉用牛肥育用）'!E48=0,\"\",'機械装置入力シート（ICT肉用牛肥育用）'!E48)","v":""},null,{"$f":"IF('機械装置入力シート（ICT肉用牛肥育用）'!G48=0,\"\",'機械装置入力シート（ICT肉用牛肥育用）'!G48)","v":""},null,{"$f":"IF('機械装置入力シート（ICT肉用牛肥育用）'!$I48=0,\"\",'機械装置入力シート（ICT肉用牛肥育用）'!$I48)","v":""},{"$f":"IF('機械装置入力シート（ICT肉用牛肥育用）'!$K48=0,\"\",'機械装置入力シート（ICT肉用牛肥育用）'!$K48)","v":""},{"$f":"IF('機械装置入力シート（ICT肉用牛肥育用）'!M48=0,\"\",'機械装置入力シート（ICT肉用牛肥育用）'!M48)","v":""},null,{"$f":"IF('機械装置入力シート（ICT肉用牛肥育用）'!P48=0,\"\",'機械装置入力シート（ICT肉用牛肥育用）'!P48)","v":""}]
[null,null,"型式",null,{"$f":"IF('機械装置入力シート（ICT肉用牛肥育用）'!E49=0,\"\",'機械装置入力シート（ICT肉用牛肥育用）'!E49)","v":""},null,{"$f":"IF('機械装置入力シート（ICT肉用牛肥育用）'!G49=0,\"\",'機械装置入力シート（ICT肉用牛肥育用）'!G49)","v":""},null,{"$f":"IF('機械装置入力シート（ICT肉用牛肥育用）'!$I49=0,\"\",'機械装置入力シート（ICT肉用牛肥育用）'!$I49)","v":""},{"$f":"IF('機械装置入力シート（ICT肉用牛肥育用）'!$K49=0,\"\",'機械装置入力シート（ICT肉用牛肥育用）'!$K49)","v":""},{"$f":"IF('機械装置入力シート（ICT肉用牛肥育用）'!M49=0,\"\",'機械装置入力シート（ICT肉用牛肥育用）'!M49)","v":""},null,{"$f":"IF('機械装置入力シート（ICT肉用牛肥育用）'!P49=0,\"\",'機械装置入力シート（ICT肉用牛肥育用）'!P49)","v":""}]
[null,null,"台数",null,{"$f":"IF('機械装置入力シート（ICT肉用牛肥育用）'!E50=0,\"\",'機械装置入力シート（ICT肉用牛肥育用）'!E50)","v":""},null,{"$f":"IF('機械装置入力シート（ICT肉用牛肥育用）'!G50=0,\"\",'機械装置入力シート（ICT肉用牛肥育用）'!G50)","v":""},null,{"$f":"IF('機械装置入力シート（ICT肉用牛肥育用）'!$I50=0,\"\",'機械装置入力シート（ICT肉用牛肥育用）'!$I50)","v":""},{"$f":"IF('機械装置入力シート（ICT肉用牛肥育用）'!$K50=0,\"\",'機械装置入力シート（ICT肉用牛肥育用）'!$K50)","v":""},{"$f":"IF('機械装置入力シート（ICT肉用牛肥育用）'!M50=0,\"\",'機械装置入力シート（ICT肉用牛肥育用）'!M50)","v":""},null,{"$f":"IF('機械装置入力シート（ICT肉用牛肥育用）'!P50=0,\"\",'機械装置入力シート（ICT肉用牛肥育用）'!P50)","v":""}]
[null,null,"本体価格（税抜）",null,{"$f":"IF('機械装置入力シート（ICT肉用牛肥育用）'!E51=0,\"\",'機械装置入力シート（ICT肉用牛肥育用）'!E51)","v":""},null,{"$f":"IF('機械装置入力シート（ICT肉用牛肥育用）'!G51=0,\"\",'機械装置入力シート（ICT肉用牛肥育用）'!G51)","v":""},null,{"$f":"IF('機械装置入力シート（ICT肉用牛肥育用）'!$I51=0,\"\",'機械装置入力シート（ICT肉用牛肥育用）'!$I51)","v":""},{"$f":"IF('機械装置入力シート（ICT肉用牛肥育用）'!$K51=0,\"\",'機械装置入力シート（ICT肉用牛肥育用）'!$K51)","v":""},{"$f":"IF('機械装置入力シート（ICT肉用牛肥育用）'!M51=0,\"\",'機械装置入力シート（ICT肉用牛肥育用）'!M51)","v":""},null,{"$f":"IF('機械装置入力シート（ICT肉用牛肥育用）'!P51=0,\"\",'機械装置入力シート（ICT肉用牛肥育用）'!P51)","v":""}]
[null,null,"消費税額",null,{"$f":"IF('機械装置入力シート（ICT肉用牛肥育用）'!E52=0,\"\",'機械装置入力シート（ICT肉用牛肥育用）'!E52)","v":""},null,{"$f":"IF('機械装置入力シート（ICT肉用牛肥育用）'!G52=0,\"\",'機械装置入力シート（ICT肉用牛肥育用）'!G52)","v":""},null,{"$f":"IF('機械装置入力シート（ICT肉用牛肥育用）'!$I52=0,\"\",'機械装置入力シート（ICT肉用牛肥育用）'!$I52)","v":""},{"$f":"IF('機械装置入力シート（ICT肉用牛肥育用）'!$K52=0,\"\",'機械装置入力シート（ICT肉用牛肥育用）'!$K52)","v":""},{"$f":"IF('機械装置入力シート（ICT肉用牛肥育用）'!M52=0,\"\",'機械装置入力シート（ICT肉用牛肥育用）'!M52)","v":""},null,{"$f":"IF('機械装置入力シート（ICT肉用牛肥育用）'!P52=0,\"\",'機械装置入力シート（ICT肉用牛肥育用）'!P52)","v":""}]
[]
[null,"（１）給餌方式の改善"]
[null,null,"①現在の状況"]
[null,null,null,null,null,"飼料給与関係機械装置の保有状況：",{"$f":"IF('機械装置入力シート（ICT肉用牛肥育用）'!G59=0,\"\",'機械装置入力シート（ICT肉用牛肥育用）'!G59)","v":""}]
[null,null,"②導入希望の機械装置"]
[null,null,"機械装置の種類",null,"自動給餌機\n（濃厚・粗飼料）",null,"自動給餌機（濃厚飼料）",null,"餌寄せロボット","自走式配餌車","稲わら細断機",null,"ほ乳ロボット",null,"移動式ほ乳機"]
[null,null,"機械装置のメーカー名",null,{"$f":"IF('機械装置入力シート（ICT肉用牛肥育用）'!$G$6 = \"○\",IF('機械装置入力シート（ICT肉用牛肥育用）'!E62=0,\"\",'機械装置入力シート（ICT肉用牛肥育用）'!E62),\"\")","v":""},null,{"$f":"IF('機械装置入力シート（ICT肉用牛肥育用）'!$G$6 = \"○\",IF('機械装置入力シート（ICT肉用牛肥育用）'!G62=0,\"\",'機械装置入力シート（ICT肉用牛肥育用）'!G62),\"\")","v":""},null,{"$f":"IF('機械装置入力シート（ICT肉用牛肥育用）'!$G$4 = \"○\",IF('機械装置入力シート（ICT肉用牛肥育用）'!I62=0,\"\",'機械装置入力シート（ICT肉用牛肥育用）'!I62),\"\")","v":""},{"$f":"IF('機械装置入力シート（ICT肉用牛肥育用）'!$G$6 = \"○\",IF('機械装置入力シート（ICT肉用牛肥育用）'!K62=0,\"\",'機械装置入力シート（ICT肉用牛肥育用）'!K62),\"\")","v":""},{"$f":"IF('機械装置入力シート（ICT肉用牛肥育用）'!$G$4 = \"○\",IF('機械装置入力シート（ICT肉用牛肥育用）'!M62=0,\"\",'機械装置入力シート（ICT肉用牛肥育用）'!M62),\"\")","v":""},null,{"$f":"IF('機械装置入力シート（ICT肉用牛肥育用）'!$G$6 = \"○\",IF('機械装置入力シート（ICT肉用牛肥育用）'!P62=0,\"\",'機械装置入力シート（ICT肉用牛肥育用）'!P62),\"\")","v":""},null,{"$f":"IF('機械装置入力シート（ICT肉用牛肥育用）'!$G$4 = \"○\",IF('機械装置入力シート（ICT肉用牛肥育用）'!R62=0,\"\",'機械装置入力シート（ICT肉用牛肥育用）'!R62),\"\")","v":""}]
[null,null,"型式",null,{"$f":"IF('機械装置入力シート（ICT肉用牛肥育用）'!$G$6 = \"○\",IF('機械装置入力シート（ICT肉用牛肥育用）'!E63=0,\"\",'機械装置入力シート（ICT肉用牛肥育用）'!E63),\"\")","v":""},null,{"$f":"IF('機械装置入力シート（ICT肉用牛肥育用）'!$G$6 = \"○\",IF('機械装置入力シート（ICT肉用牛肥育用）'!G63=0,\"\",'機械装置入力シート（ICT肉用牛肥育用）'!G63),\"\")","v":""},null,{"$f":"IF('機械装置入力シート（ICT肉用牛肥育用）'!$G$4 = \"○\",IF('機械装置入力シート（ICT肉用牛肥育用）'!I63=0,\"\",'機械装置入力シート（ICT肉用牛肥育用）'!I63),\"\")","v":""},{"$f":"IF('機械装置入力シート（ICT肉用牛肥育用）'!$G$6 = \"○\",IF('機械装置入力シート（ICT肉用牛肥育用）'!K63=0,\"\",'機械装置入力シート（ICT肉用牛肥育用）'!K63),\"\")","v":""},{"$f":"IF('機械装置入力シート（ICT肉用牛肥育用）'!$G$4 = \"○\",IF('機械装置入力シート（ICT肉用牛肥育用）'!M63=0,\"\",'機械装置入力シート（ICT肉用牛肥育用）'!M63),\"\")","v":""},null,{"$f":"IF('機械装置入力シート（ICT肉用牛肥育用）'!$G$6 = \"○\",IF('機械装置入力シート（ICT肉用牛肥育用）'!P63=0,\"\",'機械装置入力シート（ICT肉用牛肥育用）'!P63),\"\")","v":""},null,{"$f":"IF('機械装置入力シート（ICT肉用牛肥育用）'!$G$4 = \"○\",IF('機械装置入力シート（ICT肉用牛肥育用）'!R63=0,\"\",'機械装置入力シート（ICT肉用牛肥育用）'!R63),\"\")","v":""}]
[null,null,"台数",null,{"$f":"IF('機械装置入力シート（ICT肉用牛肥育用）'!$G$6 = \"○\",IF('機械装置入力シート（ICT肉用牛肥育用）'!E64=0,\"\",'機械装置入力シート（ICT肉用牛肥育用）'!E64),\"\")","v":""},null,{"$f":"IF('機械装置入力シート（ICT肉用牛肥育用）'!$G$6 = \"○\",IF('機械装置入力シート（ICT肉用牛肥育用）'!G64=0,\"\",'機械装置入力シート（ICT肉用牛肥育用）'!G64),\"\")","v":""},null,{"$f":"IF('機械装置入力シート（ICT肉用牛肥育用）'!$G$4 = \"○\",IF('機械装置入力シート（ICT肉用牛肥育用）'!I64=0,\"\",'機械装置入力シート（ICT肉用牛肥育用）'!I64),\"\")","v":""},{"$f":"IF('機械装置入力シート（ICT肉用牛肥育用）'!$G$6 = \"○\",IF('機械装置入力シート（ICT肉用牛肥育用）'!K64=0,\"\",'機械装置入力シート（ICT肉用牛肥育用）'!K64),\"\")","v":""},{"$f":"IF('機械装置入力シート（ICT肉用牛肥育用）'!$G$4 = \"○\",IF('機械装置入力シート（ICT肉用牛肥育用）'!M64=0,\"\",'機械装置入力シート（ICT肉用牛肥育用）'!M64),\"\")","v":""},null,{"$f":"IF('機械装置入力シート（ICT肉用牛肥育用）'!$G$6 = \"○\",IF('機械装置入力シート（ICT肉用牛肥育用）'!P64=0,\"\",'機械装置入力シート（ICT肉用牛肥育用）'!P64),\"\")","v":""},null,{"$f":"IF('機械装置入力シート（ICT肉用牛肥育用）'!$G$4 = \"○\",IF('機械装置入力シート（ICT肉用牛肥育用）'!R64=0,\"\",'機械装置入力シート（ICT肉用牛肥育用）'!R64),\"\")","v":""}]
[null,null,"本体価格（税抜)",null,{"$f":"IF('機械装置入力シート（ICT肉用牛肥育用）'!$G$6 = \"○\",IF('機械装置入力シート（ICT肉用牛肥育用）'!E65=0,\"\",'機械装置入力シート（ICT肉用牛肥育用）'!E65),\"\")","v":""},null,{"$f":"IF('機械装置入力シート（ICT肉用牛肥育用）'!$G$6 = \"○\",IF('機械装置入力シート（ICT肉用牛肥育用）'!G65=0,\"\",'機械装置入力シート（ICT肉用牛肥育用）'!G65),\"\")","v":""},null,{"$f":"IF('機械装置入力シート（ICT肉用牛肥育用）'!$G$4 = \"○\",IF('機械装置入力シート（ICT肉用牛肥育用）'!I65=0,\"\",'機械装置入力シート（ICT肉用牛肥育用）'!I65),\"\")","v":""},{"$f":"IF('機械装置入力シート（ICT肉用牛肥育用）'!$G$6 = \"○\",IF('機械装置入力シート（ICT肉用牛肥育用）'!K65=0,\"\",'機械装置入力シート（ICT肉用牛肥育用）'!K65),\"\")","v":""},{"$f":"IF('機械装置入力シート（ICT肉用牛肥育用）'!$G$4 = \"○\",IF('機械装置入力シート（ICT肉用牛肥育用）'!M65=0,\"\",'機械装置入力シート（ICT肉用牛肥育用）'!M65),\"\")","v":""},null,{"$f":"IF('機械装置入力シート（ICT肉用牛肥育用）'!$G$6 = \"○\",IF('機械装置入力シート（ICT肉用牛肥育用）'!P65=0,\"\",'機械装置入力シート（ICT肉用牛肥育用）'!P65),\"\")","v":""},null,{"$f":"IF('機械装置入力シート（ICT肉用牛肥育用）'!$G$4 = \"○\",IF('機械装置入力シート（ICT肉用牛肥育用）'!R65=0,\"\",'機械装置入力シート（ICT肉用牛肥育用）'!R65),\"\")","v":""}]
[null,null,"消費税額",null,{"$f":"IF('機械装置入力シート（ICT肉用牛肥育用）'!$G$6 = \"○\",IF('機械装置入力シート（ICT肉用牛肥育用）'!E66=0,\"\",'機械装置入力シート（ICT肉用牛肥育用）'!E66),\"\")","v":""},null,{"$f":"IF('機械装置入力シート（ICT肉用牛肥育用）'!$G$6 = \"○\",IF('機械装置入力シート（ICT肉用牛肥育用）'!G66=0,\"\",'機械装置入力シート（ICT肉用牛肥育用）'!G66),\"\")","v":""},null,{"$f":"IF('機械装置入力シート（ICT肉用牛肥育用）'!$G$4 = \"○\",IF('機械装置入力シート（ICT肉用牛肥育用）'!I66=0,\"\",'機械装置入力シート（ICT肉用牛肥育用）'!I66),\"\")","v":""},{"$f":"IF('機械装置入力シート（ICT肉用牛肥育用）'!$G$6 = \"○\",IF('機械装置入力シート（ICT肉用牛肥育用）'!K66=0,\"\",'機械装置入力シート（ICT肉用牛肥育用）'!K66),\"\")","v":""},{"$f":"IF('機械装置入力シート（ICT肉用牛肥育用）'!$G$4 = \"○\",IF('機械装置入力シート（ICT肉用牛肥育用）'!M66=0,\"\",'機械装置入力シート（ICT肉用牛肥育用）'!M66),\"\")","v":""},null,{"$f":"IF('機械装置入力シート（ICT肉用牛肥育用）'!$G$6 = \"○\",IF('機械装置入力シート（ICT肉用牛肥育用）'!P66=0,\"\",'機械装置入力シート（ICT肉用牛肥育用）'!P66),\"\")","v":""},null,{"$f":"IF('機械装置入力シート（ICT肉用牛肥育用）'!$G$4 = \"○\",IF('機械装置入力シート（ICT肉用牛肥育用）'!R66=0,\"\",'機械装置入力シート（ICT肉用牛肥育用）'!R66),\"\")","v":""}]
[]
[null,"（２）家畜飼養管理の改善"]
[null,null,"①現在の状況"]
[null,null,null,null,null,"家畜飼養管理機械装置の保有状況："]
[null,null,"②導入希望の機械装置"]
[null,null,"機械装置の種類",null,"行動監視装置\n（肥育管理）",null,null,"バーンスクレーパー",null,"敷料散布機","行動監視装置（放牧）"]
[null,null,"機械装置のメーカー名",null,{"$f":"IF('機械装置入力シート（ICT肉用牛肥育用）'!$G$4 = \"○\",IF('機械装置入力シート（ICT肉用牛肥育用）'!E77=0,\"\",'機械装置入力シート（ICT肉用牛肥育用）'!E77),\"\")","v":""},null,null,{"$f":"IF('機械装置入力シート（ICT肉用牛肥育用）'!$G$6 = \"○\",IF('機械装置入力シート（ICT肉用牛肥育用）'!$E89=0,\"\",'機械装置入力シート（ICT肉用牛肥育用）'!$E89),\"\")","v":""},null,{"$f":"IF('機械装置入力シート（ICT肉用牛肥育用）'!$G$6 = \"○\",IF('機械装置入力シート（ICT肉用牛肥育用）'!$N89=0,\"\",'機械装置入力シート（ICT肉用牛肥育用）'!$N89),\"\")","v":""},{"$f":"IF('機械装置入力シート（ICT肉用牛肥育用）'!$G$4 = \"○\",IF('機械装置入力シート（ICT肉用牛肥育用）'!N77=0,\"\",'機械装置入力シート（ICT肉用牛肥育用）'!N77),\"\")","v":""}]
[null,null,"型式",null,{"$f":"IF('機械装置入力シート（ICT肉用牛肥育用）'!$G$4 = \"○\",IF('機械装置入力シート（ICT肉用牛肥育用）'!E78=0,\"\",'機械装置入力シート（ICT肉用牛肥育用）'!E78),\"\")","v":""},null,null,{"$f":"IF('機械装置入力シート（ICT肉用牛肥育用）'!$G$6 = \"○\",IF('機械装置入力シート（ICT肉用牛肥育用）'!$E90=0,\"\",'機械装置入力シート（ICT肉用牛肥育用）'!$E90),\"\")","v":""},null,{"$f":"IF('機械装置入力シート（ICT肉用牛肥育用）'!$G$6 = \"○\",IF('機械装置入力シート（ICT肉用牛肥育用）'!$N90=0,\"\",'機械装置入力シート（ICT肉用牛肥育用）'!$N90),\"\")","v":""},{"$f":"IF('機械装置入力シート（ICT肉用牛肥育用）'!$G$4 = \"○\",IF('機械装置入力シート（ICT肉用牛肥育用）'!N78=0,\"\",'機械装置入力シート（ICT肉用牛肥育用）'!N78),\"\")","v":""}]
[null,null,"台数",null,{"$f":"IF('機械装置入力シート（ICT肉用牛肥育用）'!$G$4 = \"○\",IF('機械装置入力シート（ICT肉用牛肥育用）'!E79=0,\"\",'機械装置入力シート（ICT肉用牛肥育用）'!E79),\"\")","v":""},null,null,{"$f":"IF('機械装置入力シート（ICT肉用牛肥育用）'!$G$6 = \"○\",IF('機械装置入力シート（ICT肉用牛肥育用）'!$E91=0,\"\",'機械装置入力シート（ICT肉用牛肥育用）'!$E91),\"\")","v":""},null,{"$f":"IF('機械装置入力シート（ICT肉用牛肥育用）'!$G$6 = \"○\",IF('機械装置入力シート（ICT肉用牛肥育用）'!$N91=0,\"\",'機械装置入力シート（ICT肉用牛肥育用）'!$N91),\"\")","v":""},{"$f":"IF('機械装置入力シート（ICT肉用牛肥育用）'!$G$4 = \"○\",IF('機械装置入力シート（ICT肉用牛肥育用）'!N79=0,\"\",'機械装置入力シート（ICT肉用牛肥育用）'!N79),\"\")","v":""}]
[null,null,"本体価格（税抜）",null,{"$f":"IF('機械装置入力シート（ICT肉用牛肥育用）'!$G$4 = \"○\",IF('機械装置入力シート（ICT肉用牛肥育用）'!E80=0,\"\",'機械装置入力シート（ICT肉用牛肥育用）'!E80),\"\")","v":""},null,null,{"$f":"IF('機械装置入力シート（ICT肉用牛肥育用）'!$G$6 = \"○\",IF('機械装置入力シート（ICT肉用牛肥育用）'!$E92=0,\"\",'機械装置入力シート（ICT肉用牛肥育用）'!$E92),\"\")","v":""},null,{"$f":"IF('機械装置入力シート（ICT肉用牛肥育用）'!$G$6 = \"○\",IF('機械装置入力シート（ICT肉用牛肥育用）'!$N92=0,\"\",'機械装置入力シート（ICT肉用牛肥育用）'!$N92),\"\")","v":""},{"$f":"IF('機械装置入力シート（ICT肉用牛肥育用）'!$G$4 = \"○\",IF('機械装置入力シート（ICT肉用牛肥育用）'!N80=0,\"\",'機械装置入力シート（ICT肉用牛肥育用）'!N80),\"\")","v":""}]
[null,null,"消費税額",null,{"$f":"IF('機械装置入力シート（ICT肉用牛肥育用）'!$G$4 = \"○\",IF('機械装置入力シート（ICT肉用牛肥育用）'!E81=0,\"\",'機械装置入力シート（ICT肉用牛肥育用）'!E81),\"\")","v":""},null,null,{"$f":"IF('機械装置入力シート（ICT肉用牛肥育用）'!$G$6 = \"○\",IF('機械装置入力シート（ICT肉用牛肥育用）'!$E93=0,\"\",'機械装置入力シート（ICT肉用牛肥育用）'!$E93),\"\")","v":""},null,{"$f":"IF('機械装置入力シート（ICT肉用牛肥育用）'!$G$6 = \"○\",IF('機械装置入力シート（ICT肉用牛肥育用）'!$N93=0,\"\",'機械装置入力シート（ICT肉用牛肥育用）'!$N93),\"\")","v":""},{"$f":"IF('機械装置入力シート（ICT肉用牛肥育用）'!$G$4 = \"○\",IF('機械装置入力シート（ICT肉用牛肥育用）'!N81=0,\"\",'機械装置入力シート（ICT肉用牛肥育用）'!N81),\"\")","v":""}]
[]
[]
[]
[null,"３　機械装置の導入方式",null,null,null,null,null,{"$f":"IF('機械装置入力シート（ICT肉用牛肥育用）'!H98=0,\"\",'機械装置入力シート（ICT肉用牛肥育用）'!H98)","v":""}]
[]
[]
[]
[null,"４　機械装置導入により想定される労働時間の削減効果"]
[null,"（１）労働負担軽減経営体における削減労働時間",null,null,null,null,null,null,{"$f":"IF(OR('機械装置入力シート（ICT肉用牛肥育用）'!G4=\"○\",'機械装置入力シート（ICT肉用牛肥育用）'!G5=\"○\",'機械装置入力シート（ICT肉用牛肥育用）'!G6=\"○\"),IF('機械装置入力シート（ICT肉用牛肥育用）'!N103=0,IF('機械装置入力シート（ICT肉用牛肥育用）'!I103=0,\"\",'機械装置入力シート（ICT肉用牛肥育用）'!I103),'機械装置入力シート（ICT肉用牛肥育用）'!N103),\"\")","v":""},"時間"]
[]
[null,"（２）削減労働時間の検証方法",null,null,null,{"$f":"IF('機械装置入力シート（ICT肉用牛肥育用）'!F105=0,\"\",'機械装置入力シート（ICT肉用牛肥育用）'!F105)","v":""}]
[]
[]
[]
[null,"５　機械装置の導入に伴う飼養管理の改善への取組"]
[null,null,"（該当する項目に○を付ける）"]
[null,null,"\n１　後継者",null,"①　今後とも安定的な経営継続が見込まれる経営として(1)又は(2)に該当する経営\n(1)主たる経営者が45歳未満\n(2)主たる経営者が45歳以上の場合、後継者となる子息・子女又は概ね15歳以上の後継者の確保",null,null,null,null,{"$f":"IF('機械装置入力シート（ICT肉用牛肥育用）'!J111=0,\"\",'機械装置入力シート（ICT肉用牛肥育用）'!J111)","v":""}]
[null,null,null,null,"②　①に該当しない場合、後継者の確保に向けた取組の実施",null,null,null,null,{"$f":"IF('機械装置入力シート（ICT肉用牛肥育用）'!J112=0,\"\",'機械装置入力シート（ICT肉用牛肥育用）'!J112)","v":""}]
[null,null,"２　乳用後継牛",null,"①　自家の牛群更新に必要な乳用牛を概ね自家生産により確保する経営",null,null,null,null,{"$f":"IF('機械装置入力シート（ICT肉用牛肥育用）'!J113=0,\"\",'機械装置入力シート（ICT肉用牛肥育用）'!J113)","v":""}]
[null,null,null,null,"②　①以外の場合、自家の牛群更新に必要な乳用牛の自家生産に取り組む経営",null,null,null,null,{"$f":"IF('機械装置入力シート（ICT肉用牛肥育用）'!J114=0,\"\",'機械装置入力シート（ICT肉用牛肥育用）'!J114)","v":""}]
[null,null,"３　飼養管理",null,"飼養管理の高度化に取り組む経営",null,null,null,null,{"$f":"IF('機械装置入力シート（ICT肉用牛肥育用）'!J115=0,\"\",'機械装置入力シート（ICT肉用牛肥育用）'!J115)","v":""}]
[null,null,"４　その他",null,"①　地震・台風等の災害等に備えた、地域における互助協定に参加する経営",null,null,null,null,{"$f":"IF('機械装置入力シート（ICT肉用牛肥育用）'!J116=0,\"\",'機械装置入力シート（ICT肉用牛肥育用）'!J116)","v":""}]
[null,null,"（複数回答可）",null,"②　畜産（酪農）従事者の疾病時等の経営継続に備えた、地域における互助協定に参加する経営",null,null,null,null,{"$f":"IF('機械装置入力シート（ICT肉用牛肥育用）'!J117=0,\"\",'機械装置入力シート（ICT肉用牛肥育用）'!J117)","v":""}]
[null,null,null,null,"③　地震・台風等により被災した経営",null,null,null,null,{"$f":"IF('機械装置入力シート（ICT肉用牛肥育用）'!J118=0,\"\",'機械装置入力シート（ICT肉用牛肥育用）'!J118)","v":""}]
[null,null,null,null,"④　畜産・酪農収益力強化整備等特別対策事業による補助を受けていない経営",null,null,null,null,{"$f":"IF('機械装置入力シート（ICT肉用牛肥育用）'!J119=0,\"\",'機械装置入力シート（ICT肉用牛肥育用）'!J119)","v":""}]
[null,null,null,null,"⑤　牛群検定に加入している経営",null,null,null,null,{"$f":"IF('機械装置入力シート（ICT肉用牛肥育用）'!J120=0,\"\",'機械装置入力シート（ICT肉用牛肥育用）'!J120)","v":""}]
[null,null,null,null,"⑥　供用期間の延長等を図るため、自給飼料の飼料分析や技術者との意見交換を定期的に行う経営",null,null,null,null,{"$f":"IF('機械装置入力シート（ICT肉用牛肥育用）'!J121=0,\"\",'機械装置入力シート（ICT肉用牛肥育用）'!J121)","v":""}]
[null,null,null,null,"⑦　応援会議の構成員の中で、\nJGAP家畜・畜産物の認証農場又は、GAP取得チャレンジシステムの確認済み農場がある場合",null,null,null,null,{"$f":"IF('機械装置入力シート（ICT肉用牛肥育用）'!J122=0,\"\",'機械装置入力シート（ICT肉用牛肥育用）'!J122)","v":""}]
[null,null,null,null,"⑧　応援会議の構成員の中で、農場HACCP推進農場として指定される経営がある場合",null,null,null,null,{"$f":"IF('機械装置入力シート（ICT肉用牛肥育用）'!J123=0,\"\",'機械装置入力シート（ICT肉用牛肥育用）'!J123)","v":""}]
[null,null,null,null,"⑨　環境と調和のとれた食料システムの確立のための環境負荷低減事業活動の促進等に関する法律（令和４年法律第 37 号。）に基づく環境負荷低減事業活動実施計画又は特定環境負荷低減事業活動実施計画の認定を受けている経営",null,null,null,null,{"$f":"IF('機械装置入力シート（ICT肉用牛肥育用）'!J124=0,\"\",'機械装置入力シート（ICT肉用牛肥育用）'!J124)","v":""}]
[null,null,null,null,"⑩　作業安全に関する取組を実施している経営",null,null,null,null,{"$f":"IF('機械装置入力シート（ICT肉用牛肥育用）'!J125=0,\"\",'機械装置入力シート（ICT肉用牛肥育用）'!J125)","v":""}]
[null,null,null,null,"⑪　その他、地域への貢献度が高い取組と事業\n　実施主体が特に認めた取組に参加する経営",null,null,null,null,{"$f":"IF('機械装置入力シート（ICT肉用牛肥育用）'!J126=0,\"\",'機械装置入力シート（ICT肉用牛肥育用）'!J126)","v":""}]
[]
[null,"６　労働時間削減効果分析の結果",null,null,null,null,null,null,{"$f":"IF(OR('機械装置入力シート（ICT肉用牛肥育用）'!G4=\"○\",'機械装置入力シート（ICT肉用牛肥育用）'!G5=\"○\",'機械装置入力シート（ICT肉用牛肥育用）'!G6=\"○\"),IF('機械装置入力シート（ICT肉用牛肥育用）'!Q128=0,\"\",'機械装置入力シート（ICT肉用牛肥育用）'!Q128),\"\")","v":""}]
[]
[]
[null,"【添付書類】"]
[null,null,"（１）申請する補助対象機械装置の一般競争入札の場合は入札結果を証する書面及び"]
[null,null,"　見積書（写し）、見積もり合わせの場合は三者以上の見積書（写し）"]
[null,null,"（２）申請する補助対象機械装置のカタログ"]
[null,null,"（３）５の回答根拠を示す資料"]
[null,null,"（４）購入方式を選択した場合、以下のいずれかに該当する書類\n　　（Iの第1の12の（３）のア関係）"]
[null,null,"　　・災害時における地域の互助協定に関する締結書類（写し）"]
[null,null,"　　・疾病時等における地域の互助協定に関する締結書類（写し）"]
[null,null,"（５）みどりのチェックシート"]
[null,null,"（６）配合飼料価格安定制度に加入していることが分かる資料（加入していない場合はその理由書）"]
[null,null,"（７）農業協同組合又は農業協同組合連合会が、自ら家畜の飼養を行う場合、\n　農業協同組合法第11条の51の規定に係る農業経営規程（写し）"]
[]
[]
[]
[null,"補助金及び要望調査に関する確認書"]
[]
[]
[null,"　本事業の要望に当たり、交付要綱、実施要綱、実施要綱別紙等をよく読み内容を理解しました。"]
[null,"　特に、次の事項に対し、相違があった場合は、事業参加承認後であっても補助金の一部もし"]
[null,"くは全部を受給できなくなり、または補助金の支払後においては補助金の一部もしくは全部を"]
[null,"返還することを承諾のうえ、要望します。"]
[]
[null,"１　補助金に関係する全ての提出書類において、如何なる理由があってもその内容に虚偽の記"]
[null,"　載は行いません。"]
[]
[null,"２　一般競争入札又は３者以上の見積もりによる補助対象機械装置の最低価格を補助対象経費"]
[null,"　として申請します。また、補助対象経費は補助対象機械装置の本体価格のみであり、それ以"]
[null,"　外の経費を混同していません。"]
[]
[null,"３　既に所有している機械装置を下取りさせて機械装置を導入する場合は、導入する機械装置"]
[null,"　の本体価格から当該機械装置の下取り価格を控除した額を補助対象経費として申請します。"]
[]
[null,"４　事業実施主体が事業参加申請を承認する以前に、既に発注等を行った場合は補助金の交付"]
[null,"　対象とならないことを承諾します。また、導入方式の場合は、補助金の支払いは、機械装置"]
[null,"　の導入、支払い及び所有権の移転が完了し、実績報告書を提出した後一定期間を要すること"]
[null,"　を承諾します。"]
[]
[null,"５　補助事業により取得した機械装置を、処分制限期間内に処分しようとするときは、事前に"]
[null,"　処分内容等について事業実施主体の承認を受けます。また、その際、補助金の返還が発生す"]
[null,"　る場合があることを承諾します。"]
[]
[null,{"$f":"IF(OR('機械装置入力シート（ICT肉用牛肥育用）'!G4=\"○\",'機械装置入力シート（ICT肉用牛肥育用）'!G5=\"○\",'機械装置入力シート（ICT肉用牛肥育用）'!G6=\"○\"),IF('機械装置入力シート（ICT肉用牛肥育用）'!I16=0,\"\",'機械装置入力シート（ICT肉用牛肥育用）'!I16),\"\")","v":""}]
[null,{"$f":"IF(OR('機械装置入力シート（ICT肉用牛肥育用）'!G4=\"○\",'機械装置入力シート（ICT肉用牛肥育用）'!G5=\"○\",'機械装置入力シート（ICT肉用牛肥育用）'!G6=\"○\"),IF('機械装置入力シート（ICT肉用牛肥育用）'!I21=0,\"\",'機械装置入力シート（ICT肉用牛肥育用）'!I21),\"\")","v":""}]
[null,{"$f":"IF(OR('機械装置入力シート（ICT肉用牛肥育用）'!G4=\"○\",'機械装置入力シート（ICT肉用牛肥育用）'!G5=\"○\",'機械装置入力シート（ICT肉用牛肥育用）'!G6=\"○\"),'機械装置入力シート（ICT肉用牛肥育用）'!I22 & \" \" & '機械装置入力シート（ICT肉用牛肥育用）'!I23 & \"\",\"\")","v":""}]
[]
[null,"※　下取り機械装置の補助事業等の取扱いは、「補助事業等における生産の取扱いについて」（昭和57年10月26日"]
[null,"　付け57経第1702号）による。"]
[null,"※　処分制限期間：導入した機械装置の耐用年数をいう。"]
[null,"※　処分とは、補助金の交付目的に反して使用し、譲渡し、交換し、貸し付け、廃棄し、又は担保に供することをいう。"]
[null,"※　耐用年数は、「減価償却資産の耐用年数に関する省令」（昭和40年3月31日付け大蔵省令第15号）に準ずる。"]

{"sheet":"まとめシート（ICT 別添6）","index":2,"n_rows":25,"n_cols":80,"rows_kept":25,"cut":false,"hidden":false,"merged":[[3,3,3,4],[6,38,7,40],[6,41,7,42],[6,43,7,45],[6,46,7,48],[5,1,7,2],[5,3,7,10],[5,11,7,17],[5,18,5,37],[6,18,7,24],[6,25,7,31],[6,32,7,34],[6,35,7,37],[5,79,7,79],[6,49,7,52],[5,77,7,77],[5,78,7,78],[5,38,5,52],[5,53,7,56],[5,57,7,60],[5,61,7,66],[5,67,7,69],[5,71,7,71],[5,72,7,72],[5,73,7,73],[5,74,7,74],[5,75,7,75],[5,76,7,76],[8,53,8,56],[8,57,8,60],[8,61,8,66],[8,67,8,69],[9,1,9,2],[9,3,9,10],[9,11,9,17],[9,18,9,24],[9,25,9,31],[9,32,9,34],[8,35,8,37],[8,38,8,40],[8,41,8,42],[8,43,8,45],[8,46,8,48],[8,49,8,52],[8,1,8,2],[8,3,8,10],[8,11,8,17],[8,18,8,24],[8,25,8,31],[8,32,8,34],[9,53,9,56],[9,57,9,60],[9,67,9,69],[10,1,10,2],[10,3,10,10],[10,11,10,17],[10,18,10,24],[10,25,10,31],[10,32,10,34],[9,35,9,37],[9,38,9,40],[9,41,9,42],[9,43,9,45],[9,46,9,48],[9,49,9,52],[10,53,10,56],[10,57,10,60],[10,61,10,66],[10,67,10,69],[10,43,10,45],[10,46,10,48],[10,49,10,52],[11,25,11,31],[11,32,11,34],[10,35,10,37],[10,38,10,40],[10,41,10,42],[9,61,9,66],[11,53,11,56],[11,57,11,60],[11,61,11,66],[11,67,11,69],[12,1,12,2],[12,3,12,10],[12,11,12,17],[12,18,12,24],[12,25,12,31],[12,32,12,34],[11,35,11,37],[11,38,11,40],[11,41,11,42],[11,43,11,45],[11,46,11,48],[11,49,11,52],[12,53,12,56],[12,57,12,60],[12,61,12,66],[12,67,12,69],[12,43,12,45],[12,46,12,48],[12,49,12,52],[11,1,11,2],[11,3,11,10],[11,11,11,17],[11,18,11,24],[13,3,13,10],[13,11,13,17],[13,18,13,24],[13,25,13,31],[13,32,13,34],[12,35,12,37],[12,38,12,40],[12,41,12,42],[14,35,14,37],[14,38,14,40],[14,41,14,42],[13,53,13,56],[13,57,13,60],[13,61,13,66],[13,67,13,69],[14,1,14,2],[14,3,14,10],[14,11,14,17],[14,18,14,24],[14,25,14,31],[14,32,14,34],[13,35,13,37],[13,38,13,40],[13,41,13,42],[13,43,13,45],[13,46,13,48],[13,49,13,52],[14,53,14,56],[14,57,14,60],[14,61,14,66],[14,67,14,69],[14,43,14,45],[14,46,14,48],[14,49,14,52],[13,1,13,2],[15,61,15,66],[15,67,15,69],[16,1,16,2],[16,3,16,10],[16,11,16,17],[16,18,16,24],[16,25,16,31],[16,32,16,34],[15,35,15,37],[15,38,15,40],[15,41,15,42],[15,43,15,45],[15,46,15,48],[15,49,15,52],[16,53,16,56],[16,57,16,60],[16,61,16,66],[16,67,16,69],[16,43,16,45],[16,46,16,48],[16,49,16,52],[15,1,15,2],[15,3,15,10],[15,11,15,17],[17,11,17,17],[17,18,17,24],[17,25,17,31],[17,32,17,34],[16,35,16,37],[16,38,16,40],[16,41,16,42],[15,53,15,56],[15,57,15,60],[15,18,15,24],[15,25,15,31],[15,32,15,34],[17,67,17,69],[18,1,18,2],[18,3,18,10],[18,11,18,17],[18,18,18,24],[18,25,18,31],[18,32,18,34],[17,35,17,37],[17,38,17,40],[17,41,17,42],[17,43,17,45],[17,46,17,48],[17,49,17,52],[18,35,18,37],[18,38,18,40],[18,41,18,42],[18,43,18,45],[18,46,18,48],[18,49,18,52],[17,53,17,56],[17,57,17,60],[17,61,17,66],[17,1,17,2],[17,3,17,10],[20,1,20,2],[20,3,20,10],[20,11,20,17],[20,18,20,24],[20,25,20,31],[20,32,20,34],[19,35,19,37],[19,38,19,40],[19,41,19,42],[19,1,19,2],[19,3,19,10],[19,11,19,17],[19,18,19,24],[19,25,19,31],[19,32,19,34],[21,32,21,34],[20,35,20,37],[20,38,20,40],[20,41,20,42],[20,43,20,45],[20,46,20,48],[20,49,20,52],[19,53,19,56],[19,57,19,60],[19,43,19,45],[19,46,19,48],[19,49,19,52],[22,43,22,45],[22,46,22,48],[22,49,22,52],[21,53,21,56],[21,57,21,60],[21,61,21,66],[21,67,21,69],[22,1,22,2],[22,3,22,10],[22,11,22,17],[22,18,22,24],[22,25,22,31],[22,32,22,34],[21,35,21,37],[21,38,21,40],[21,41,21,42],[21,43,21,45],[21,46,21,48],[21,49,21,52],[21,1,21,2],[21,3,21,10],[21,11,21,17],[21,18,21,24],[21,25,21,31],[23,1,23,2],[23,3,23,10],[23,11,23,17],[23,18,23,24],[23,25,23,31],[23,32,23,34],[22,35,22,37],[22,38,22,40],[22,41,22,42],[24,35,24,37],[24,38,24,40],[24,41,24,42],[24,43,24,45],[24,46,24,48],[24,49,24,52],[23,35,23,37],[23,38,23,40],[23,41,23,42],[23,43,23,45],[23,46,23,48],[23,49,23,52],[19,61,19,66],[19,67,19,69],[18,53,18,56],[18,57,18,60],[18,61,18,66],[18,67,18,69],[23,53,23,56],[23,57,23,60],[23,61,23,66],[23,67,23,69],[22,53,22,56],[22,57,22,60],[22,61,22,66],[22,67,22,69],[20,53,20,56],[20,57,20,60],[20,61,20,66],[20,67,20,69]]}
[]
[null,"別添６（Iの第2の2関係）　転記用シート"]
[]
[null,"令和",null,5,null,"年度畜産経営体生産性向上対策（ICT化等機械装置等導入事業）参加要望書",null,null,null,null,null,null,null,null,null,null,null,null,null,null,null,null,null,null,null,null,null,null,null,null,null,null,null,"転記用シート"]
[]
[null,"優先順位",null,"畜産ICT応援会議の名称",null,null,null,null,null,null,null,"労働負担軽減\n経営体名",null,null,null,null,null,null,"補助対象機械装置",null,null,null,null,null,null,null,null,null,null,null,null,null,null,null,null,null,null,null,"機械装置価格、補助金額等",null,null,null,null,null,null,null,null,null,null,null,null,null,null,"成果目標値",null,null,null,"労働時間削減効果分析の結果",null,null,null,"検証方法",null,null,null,null,null,"備考",null,null,null,"県名","申込日","県名","県内応援会議番号","肥育常時頭数","導入方式","総労働時間","削減労働時間","作業人員"]
[null,null,null,null,null,null,null,null,null,null,null,null,null,null,null,null,null,null,"機械装置の区分",null,null,null,null,null,null,"機械装置名",null,null,null,null,null,null,"カタログページ",null,null,"数量",null,null,"機械\n価格\nA",null,null,"消費税\nB",null,"計\n(A+B)",null,null,"補助率",null,null,"補助金額\n(A×1/2以内)"]
[]
[]
[]
[]
[]
[]
[]
[]
[]
[]
[]
[]
[]
[]
[]
[]
[]
[null,null,null,null,null,null,null,null,null,null,null,null,null,null,null,null,null,null,null,null,null,null,null,null,null,null,null,null,null,null,null,null,null,null,null,"合計"]

{"sheet":"項目リスト","index":3,"n_rows":49,"n_cols":11,"rows_kept":49,"cut":false,"hidden":false,"merged":[]}
["VersionDate 2023/4/17"]
["県CD","県名","記号","導入方式","機械装置の区分","転記用の名称","入力シートでの名称","機械装置名","1頭あたりの時間","区分","値"]
[1,"北海道",null,null,"搾乳関係機械装置",null,null,null,null,"１　後継者①",0.9]
[2,"青森県","○","リース方式","搾乳関係機械装置",null,null,"バケット及びパイプライン方式（自動離脱装置なし）",48,"１　後継者②",0.95]
[3,"岩手県",null,"購入方式","搾乳関係機械装置","ミルカー自動離脱装置","ミルカー自動離脱装置","バケット及びパイプライン方式（自動離脱装置あり）",40,"２　乳用後継牛①",0.9]
[4,"宮城県",null,null,"搾乳関係機械装置","搾乳ユニット搬送レール手動","搾乳ユニット搬送レール手動","搾乳ユニット手動搬送方式（自動離脱装置なし）",46,"２　乳用後継牛②",0.95]
[5,"秋田県",null,null,"搾乳関係機械装置","搾乳ユニット搬送レール手動","搾乳ユニット搬送レール手動","搾乳ユニット手動搬送方式（自動離脱装置あり）",38,"３　飼養管理",0.9]
[6,"山形県",null,null,"搾乳関係機械装置","搾乳ユニット搬送レール自動","搾乳ユニット搬送レール自動","搾乳ユニット自動搬送方式",34,"４　その他①",0.95]
[7,"福島県",null,null,"搾乳関係機械装置","ミルキングパーラー","ミルキングパーラー","ミルキングパーラー方式（自動離脱装置なし）",42,"４　その他②",0.95]
[8,"茨城県",null,null,"搾乳関係機械装置","ミルキングパーラー","ミルキングパーラー","ミルキングパーラー方式（自動離脱装置あり）",34,"４　その他③",0.9]
[9,"栃木県",null,null,"搾乳関係機械装置","搾乳ロボット","搾乳ロボット","搾乳ロボット方式",7,"４　その他④",0.95]
[10,"群馬県",null,null,"搾乳関係機械装置",null,null,"人力による乳頭洗浄",8,"４　その他⑤",0.9]
[11,"埼玉県",null,null,"搾乳関係機械装置","自動乳頭洗浄機","自動乳頭洗浄機","自動乳頭洗浄機",6,"４　その他⑥",0.95]
[12,"千葉県",null,null,"飼料給与関係機械装置",null,null,"人力による給餌方式",31,"４　その他⑦",0.95]
[13,"東京都",null,null,"飼料給与関係機械装置","餌寄せロボット","餌寄せロボット","自動餌寄せ方式",28,"４　その他⑧",0.95]
[14,"神奈川県",null,null,"飼料給与関係機械装置","自動給餌機（濃厚飼料）","自動給餌機（濃厚飼料）","自動給餌方式（濃厚飼料）",12,"４　その他⑨",0.9]
[15,"新潟県",null,null,"飼料給与関係機械装置",null,null,"自動給餌+自動餌寄せ方式（濃厚飼料）",9,"４　その他⑩",0.9]
[16,"富山県",null,null,"飼料給与関係機械装置","自動給餌機（濃厚・粗飼料）","自動給餌機（濃厚・粗飼料）","自動給餌方式（濃厚・粗飼料）",10,"４　その他⑪",0.9]
[17,"石川県",null,null,"飼料給与関係機械装置",null,null,"自動給餌+自動餌寄せ方式（濃厚・粗飼料）",7]
[18,"福井県",null,null,"飼料給与関係機械装置","自走式配餌車","自走式配餌車","自走式配餌車",26]
[19,"山梨県",null,null,"飼料給与関係機械装置",null,null,"自走式配餌＋自動餌寄せ方式",24]
[20,"長野県",null,null,"飼料給与関係機械装置",null,null,null,31]
[21,"岐阜県",null,null,"飼料給与関係機械装置","稲わら細断機","稲わら細断機","稲わら細断機による細断",27]
[22,"静岡県",null,null,"飼料給与関係機械装置",null,null,"人力によるほ乳方式",3]
[23,"愛知県",null,null,"飼料給与関係機械装置","ほ乳ロボット","ほ乳ロボット","ほ乳ロボット方式（据置式・レール式）",0]
[24,"三重県",null,null,"飼料給与関係機械装置","ほ乳ロボット（レール式）","ほ乳ロボット（カーフレール式）","ほ乳ロボット方式（カーフレール式）",0]
[25,"滋賀県",null,null,"飼料給与関係機械装置","移動式ほ乳機","移動式ほ乳機","移動式ほ乳機方式",2]
[26,"京都府",null,null,"家畜飼養管理機械装置",null,null,"人力による観察方式",5]
[27,"大阪府",null,null,"家畜飼養管理機械装置","発情発見装置","発情発見装置","発情発見装置の活用",5]
[28,"兵庫県",null,null,"家畜飼養管理機械装置","分娩監視装置","分娩監視装置","分娩監視装置の活用",5]
[29,"奈良県",null,null,"家畜飼養管理機械装置","行動監視装置（繁殖・肥育）","行動監視装置（繁殖・肥育）","行動監視装置（繁殖・肥育）の活用",3]
[30,"和歌山県",null,null,"家畜飼養管理機械装置",null,null,"発情発見装置＋分娩監視装置の活用",11]
[31,"鳥取県",null,null,"家畜飼養管理機械装置",null,null,"発情発見装置＋行動監視装置（繁殖・肥育）の活用",11]
[32,"島根県",null,null,"家畜飼養管理機械装置",null,null,"ホイールローダー等自動除糞機によらない除糞",4]
[33,"岡山県",null,null,"家畜飼養管理機械装置","バーンスクレーパー","バーンスクレーパー","バーンスクレーパーによる除糞",0]
[34,"広島県",null,null,"家畜飼養管理機械装置",null,null,"人力による敷料散布",3]
[35,"山口県",null,null,"家畜飼養管理機械装置","敷料散布機","敷料散布機","敷料散布機による敷料散布",0]
[36,"徳島県",null,null,"家畜飼養管理機械装置",null,null,"人力による観察方式",5]
[37,"香川県",null,null,"家畜飼養管理機械装置","行動監視装置（肥育）","行動監視装置（肥育）","行動監視装置（肥育）の活用",3]
[38,"愛媛県",null,null,"家畜飼養管理機械装置",null,null,"人力による管理方式",9]
[39,"高知県",null,null,"家畜飼養管理機械装置","行動監視装置（放牧）","行動監視装置（放牧）","行動監視装置（放牧）の活用",7]
[40,"福岡県"]
[41,"佐賀県"]
[42,"長崎県"]
[43,"熊本県"]
[44,"大分県"]
[45,"宮崎県"]
[46,"鹿児島県"]
[47,"沖縄県"]

{"sheet":"機械装置リスト","index":4,"n_rows":62,"n_cols":80,"rows_kept":62,"cut":false,"hidden":false,"merged":[]}
[]
["機械装置の区分","メーカー名（搾乳ロボット）","型式名（搾乳ロボット）","カタログページ","機械装置の区分","メーカー名（ミルキングパーラー）","型式名（ミルキングパーラー）","カタログページ","機械装置の区分","メーカー名（搾乳ユニット搬送レール自動方式）","型式名（搾乳ユニット搬送レール自動方式）","カタログページ","機械装置の区分","メーカー名（搾乳ユニット搬送レール手動方式）","型式名（搾乳ユニット搬送レール手動方式）","カタログページ","機械装置の区分","メーカー名（自動離脱装置）","型式名（自動離脱装置）","カタログページ","機械装置の区分","メーカー名（乳頭洗浄装置）","型式名（乳頭洗浄装置）","カタログページ","機械装置の区分","メーカー名（自動給餌機：濃厚・粗飼料）","型式名（自動給餌機：濃厚・粗飼料）","カタログページ","機械装置の区分","メーカー名（自動給餌機：濃厚飼料）","型式名自動給餌機（自動給餌機：濃厚飼料）","カタログページ","機械装置の区分","メーカー名（ほ乳ロボット）","型式名（ほ乳ロボット）","カタログページ","機械装置の区分","メーカー名（餌寄せロボット）","型式名（餌寄せロボット）","カタログページ","機械装置の区分","メーカー名（自走式配餌車）","型式名（自走式配餌車）","カタログページ","機械装置の区分","メーカー名（稲わら細断機）","型式名（稲わら細断機）","カタログページ","機械装置の区分","メーカー名（敷料散布機）","型式名（敷料散布機）","カタログページ","機械装置の区分","メーカー名（発情発見機）","型式名（発情発見機）","カタログページ","機械装置の区分","メーカー名（分娩監視装置）","型式名（分娩監視装置）","カタログページ","機械装置の区分","メーカー名（行動監視装置:繁殖・肥育）","型式名（行動監視装置:繁殖・肥育）","カタログページ","機械装置の区分","メーカー名（行動監視装置:放牧）","型式名（行動監視装置:放牧）","カタログページ","機械装置の区分","メーカー名（バーンスクレーパー）","型式名（バーンスクレーパー）","カタログページ","機械装置の区分","メーカー名（移動式ほ乳機）","型式名（移動式ほ乳機）","カタログページ","機械装置の区分","メーカー名（ミルキングパーラー用自動離脱装置）","型式名（ミルキングパーラー用自動離脱装置）","カタログページ"]
["搾乳関係機械装置","LELY","A4",null,"搾乳関係機械装置","GEA","オートローターパフォーマ","p113","搾乳関係機械装置","オリオン機械","UCA30A","p129","搾乳関係機械装置","オリオン機械","UCR75","p129","搾乳関係機械装置","オリオン機械","MMD500","p128","搾乳関係機械装置","オリオン機械","TCU-S","p126","飼料給与関係機械装置","GEA","M2000","p70","飼料給与関係機械装置","中嶋製作所","F-50型",null,"飼料給与関係機械装置","フォースターテクニック","TAP5-VS2-30","p80","飼料給与関係機械装置","GEA","FRone",null,"飼料給与関係機械装置","JAY・LOR",5100,"p52","飼料給与関係機械装置","新興和産業","SUW-202",null,"家畜飼養管理機械装置","オリオン機械","BSMA08",null,"家畜飼養管理機械装置","GEA","首用（Integrate）",null,"家畜飼養管理機械装置","リモート","MD1109MBW（親機）","p332","家畜飼養管理機械装置","デザミス","U-motion DU-RE01・DU-TG01","p320",null,null,null,null,"家畜飼養管理機械装置","デボア","フラップ式スクレーパー",null,"飼料給与関係機械装置","フォースターテクニック","ミルクモービル200L","p84","搾乳関係機械装置","ストランゴ","ソフィマットMD","p128"]
["搾乳関係機械装置","LELY","A5","p123","搾乳関係機械装置","TDM","R3","p116",null,null,null,null,"搾乳関係機械装置","オリオン機械","UCA30A手動",null,"搾乳関係機械装置","デラバル","MU480","p127","搾乳関係機械装置","オリオン機械","TCU-P","p126","飼料給与関係機械装置","GEA","M3000","p70","飼料給与関係機械装置","中嶋製作所","F-75型",null,"飼料給与関係機械装置","フォースターテクニック","TAK5-VS2-30","p80","飼料給与関係機械装置","JOZ","Moov Pro",null,"飼料給与関係機械装置","JAY・LOR",5050,"p52","飼料給与関係機械装置","チュウチク","ホシカッター","p59","家畜飼養管理機械装置","VALMETAL","e50",null,"家畜飼養管理機械装置","コムテック","TFR400E","p327","家畜飼養管理機械装置","デザミス","U-motion DU-CB01","p320","家畜飼養管理機械装置","ファームノート","ファームノートカラー",null,null,null,null,null,"家畜飼養管理機械装置","デボア","V型スクレーパー",null,"飼料給与関係機械装置","フォースターテクニック","ミルクモービル120L","p84","搾乳関係機械装置","GEA","デマトロン75"]
["搾乳関係機械装置","GEA","R9900","p125","搾乳関係機械装置","ミルクライン","ミルプロP4C","p115",null,null,null,null,"搾乳関係機械装置","SAC","IDC-T レール UNILINE",null,"搾乳関係機械装置","デラバル","MU486","p127","搾乳関係機械装置","プリシステム","F71","p126","飼料給与関係機械装置","オリオン機械","FMFS30","p68","飼料給与関係機械装置","中嶋製作所","F-90型",null,"飼料給与関係機械装置","フォースターテクニック","スターターフィーダー",null,"飼料給与関係機械装置","JOZ","Moov2.0","p76","飼料給与関係機械装置","WIC","32-2SB",null,"飼料給与関係機械装置","ジェメリ","TR18-12",null,"家畜飼養管理機械装置","Wasserbauer","フライピット",null,"家畜飼養管理機械装置","コムテック","TFR400EA","p327","家畜飼養管理機械装置","uLikeKorea","LiveCare","p330","家畜飼養管理機械装置","uLikeKorea","LiveCare","p330",null,null,null,null,"家畜飼養管理機械装置","GEA","スワロー型（ケーブル）",null,"飼料給与関係機械装置","フォースターテクニック","MDK4-200-37-03","p83","搾乳関係機械装置","デラバル","MP580"]
["搾乳関係機械装置","GEA","R9500","p124","搾乳関係機械装置","デラバル","PR3100HD","p112",null,null,null,null,"搾乳関係機械装置","デラバル","D-CR","p127","搾乳関係機械装置","ストランゴ","ソフィマットSH-NW",null,"搾乳関係機械装置","プリシステム","F488",null,"飼料給与関係機械装置","オリオン機械","FMA16A","p69","飼料給与関係機械装置","中嶋製作所","F-90SS型",null,"飼料給与関係機械装置","フォースターテクニック","CRS2-IF1-WH","p80","飼料給与関係機械装置","LELY","JUNO100",null,"飼料給与関係機械装置","WIC","52-2SB",null,"飼料給与関係機械装置","ロビベック","PF600","p59",null,null,null,null,"家畜飼養管理機械装置","コムテック","TFR400E","p327","家畜飼養管理機械装置","太平洋工業","CAPSULE SENSE","p329","家畜飼養管理機械装置","太平洋工業","CAPSULE SENSE","p329",null,null,null,null,"家畜飼養管理機械装置","GEA","V型（ケーブル）",null,"飼料給与関係機械装置","フォースターテクニック","MDK4-200-37-04","p83","搾乳関係機械装置","デラバル","MP680"]
["搾乳関係機械装置","デラバル","VMS V300","p122","搾乳関係機械装置","デラバル","E500",null,null,null,null,null,"搾乳関係機械装置","本多製作所","ユニットポーター",null,"搾乳関係機械装置","オリオン機械","OCR5000A",null,"搾乳関係機械装置","ウェスター","アダーガン",null,"飼料給与関係機械装置","オリオン機械","FMA20A","p69","飼料給与関係機械装置","中嶋製作所","RC-38型",null,"飼料給与関係機械装置","フォースターテクニック","VARIO+",null,"飼料給与関係機械装置","LELY","JUNO150",null,"飼料給与関係機械装置","WIC","70-2SB",null,"飼料給与関係機械装置","STAR","FRBC-100MS1",null,null,null,null,null,"家畜飼養管理機械装置","コムテック","TFR400EF","p327","家畜飼養管理機械装置","ファーマーズサポート","MV-A0001","p333",null,null,null,null,null,null,null,null,"家畜飼養管理機械装置","GEA","スワロー型（チェーン）",null,"飼料給与関係機械装置","フォースターテクニック","MDK4-120-37-03","p83","搾乳関係機械装置","デラバル","MP780"]
["搾乳関係機械装置","デラバル","VMS V300-OCC","p122","搾乳関係機械装置","デラバル","E300","p112",null,null,null,null,"搾乳関係機械装置","ストランゴ","ハンディユニットキャリア","p128","搾乳関係機械装置","デラバル","MUブルー","p127","搾乳関係機械装置","デラバル","TSR","p127","飼料給与関係機械装置","オリオン機械","FMA04A","p69","飼料給与関係機械装置","中嶋製作所","RC-50型",null,"飼料給与関係機械装置","LELY（フォースターテクニック）","TAP5-VS2-30","p79","飼料給与関係機械装置","LELY","JUNO","p75","飼料給与関係機械装置","WIC","90-2SB",null,"飼料給与関係機械装置","STAR","FRBC-120MS1",null,null,null,null,null,"家畜飼養管理機械装置","コムテック","TFR400EDⅢ","p327","家畜飼養管理機械装置","ネットカメラ","ベーシックNET-WC01-00CT",null,null,null,null,null,null,null,null,null,"家畜飼養管理機械装置","GEA","V型（チェーン）",null,"飼料給与関係機械装置","フォースターテクニック","MDK4-120-37-04","p83","搾乳関係機械装置","デラバル","MP400"]
["搾乳関係機械装置","デラバル","AMR",null,"搾乳関係機械装置","ボーマチック","Xcalibur 360EX","p118",null,null,null,null,"搾乳関係機械装置","土谷特殊農機具製作所","TUCユニットキャリー",null,"搾乳関係機械装置","SAC","IDC-Tライト",null,null,null,null,null,"飼料給与関係機械装置","オリオン機械","FMA08A","p69","飼料給与関係機械装置","中嶋製作所","C-38型",null,"飼料給与関係機械装置","LELY（フォースターテクニック）","TAK5-VS2-30","p79","飼料給与関係機械装置","ボーマチック","FP-1","p74","飼料給与関係機械装置","VALMETAL","525CC","p72","飼料給与関係機械装置","STAR","FRBC-120MS1P",null,null,null,null,null,"家畜飼養管理機械装置","コムテック","TFR400EDⅢ（Jump）","p327","家畜飼養管理機械装置","ネットカメラ","ベーシックNET-WC01-00CW",null,null,null,null,null,null,null,null,null,"家畜飼養管理機械装置","GEAフール","スワロー型（ケーブル）","284","飼料給与関係機械装置","デラバル","CMM200+",null,"搾乳関係機械装置","デラバル","MP130"]
["搾乳関係機械装置","SAC","RDS Future Line ELITEミラー","p120","搾乳関係機械装置","ボーマチック","Streamline 360EX",null,null,null,null,null,null,null,null,null,"搾乳関係機械装置","ストランゴ","ソフィマットMD","p128",null,null,null,null,"飼料給与関係機械装置","One 2 Feed","One2Feed Mix","p65","飼料給与関係機械装置","中嶋製作所","C-50型",null,"飼料給与関係機械装置","フォースターテクニック","CRS2-IF1-WH","p78","飼料給与関係機械装置","ボーマチック","FP-2","p74","飼料給与関係機械装置","VALMETAL","530CC","p72",null,null,null,null,null,null,null,null,"家畜飼養管理機械装置","Allflex","SenseHub Dairy","p322","家畜飼養管理機械装置","ネットカメラ","スタンダードNET-WC01-01CT",null,null,null,null,null,null,null,null,null,"家畜飼養管理機械装置","GEAフール","V型（ケーブル）","284","飼料給与関係機械装置","デラバル","CMM120+",null,"搾乳関係機械装置","デラバル","MP150"]
["搾乳関係機械装置","SAC","RDS Future Line ELITEシングル","p120","搾乳関係機械装置","SAC","SAC ロータリーパーラー",null,null,null,null,null,null,null,null,null,"搾乳関係機械装置","ストランゴ","ソフィマットMD+MP  MODEL V2型","p128",null,null,null,null,"飼料給与関係機械装置","LELY","LELY Vector","p77","飼料給与関係機械装置","大宮製作所","51型","p55","飼料給与関係機械装置","デラバル","CF1000S","p81","飼料給与関係機械装置","Wasserbauer","バトラーゴールドPro","p67","飼料給与関係機械装置","VALMETAL","542CC","p72",null,null,null,null,null,null,null,null,"家畜飼養管理機械装置","Allflex","Sensehub Beef",null,"家畜飼養管理機械装置","ネットカメラ","スタンダードNET-WC01-01CW",null,null,null,null,null,null,null,null,null,"家畜飼養管理機械装置","GEAフール","GT5",null,"飼料給与関係機械装置","Holm & Laue","MTX100","p84"]
["搾乳関係機械装置","フルウッド","M2erlin",null,"搾乳関係機械装置","ベコデーリィオートメーション","ベコ・ロータリーパーラー","p114",null,null,null,null,null,null,null,null,"搾乳関係機械装置","AIC","70560","p130",null,null,null,null,"飼料給与関係機械装置","デラバル","オプティマット","p66","飼料給与関係機械装置","大宮製作所","63型","p55","飼料給与関係機械装置","デラバル","CFR100","p81","飼料給与関係機械装置","デラバル","オプティデュオ",null,"飼料給与関係機械装置","VALMETAL","960CC","p72",null,null,null,null,null,null,null,null,"家畜飼養管理機械装置","Allflex","HeatimePro+","p322","家畜飼養管理機械装置","ネットカメラ","ドームスタンダードNET-WC04-01CT-A",null,null,null,null,null,null,null,null,null,"家畜飼養管理機械装置","GEAフール","スワロー型（チェーン）","284","飼料給与関係機械装置","Holm & Laue","MTX100P","p84"]
["搾乳関係機械装置","ミルコマックス","ロボマックス","p121","搾乳関係機械装置","フルウッド","ロータリーアブレスト",null,null,null,null,null,null,null,null,null,"搾乳関係機械装置","AIC",70060,null,null,null,null,null,"飼料給与関係機械装置","デラバル","オプティマットプラス","p66","飼料給与関係機械装置","大宮製作所","39型","p56","飼料給与関係機械装置","フォースターテクニック","CRS2-IF1-WH　　","p82",null,null,null,null,"飼料給与関係機械装置","VALMETAL","975CC","p72",null,null,null,null,null,null,null,null,"家畜飼養管理機械装置","デザミス","U-motion DU-RE01・DU-TG01","p320","家畜飼養管理機械装置","ネットカメラ","ドームスタンダードNET-WC04-01CW-A",null,null,null,null,null,null,null,null,null,"家畜飼養管理機械装置","GEAフール","V型（チェーン）","284","飼料給与関係機械装置","Holm & Laue","MTX150","p84"]
[null,null,null,null,"搾乳関係機械装置","ストランゴ","パラレルタイプ","p120",null,null,null,null,null,null,null,null,"搾乳関係機械装置","AIC",70061,null,null,null,null,null,"飼料給与関係機械装置","デラバル","オプティマットマスター","p66","飼料給与関係機械装置","大宮製作所","51型","p56","飼料給与関係機械装置","フォースターテクニック","FC-PRD1EB25","p82",null,null,null,null,"飼料給与関係機械装置","VALMETAL","E30","p72",null,null,null,null,null,null,null,null,"家畜飼養管理機械装置","uLikeKorea","LiveCare","p330","家畜飼養管理機械装置","ネットカメラ","ドームNET-WC02-01CT",null,null,null,null,null,null,null,null,null,"家畜飼養管理機械装置","福地工業","FS-2M14",null,"飼料給与関係機械装置","Holm & Laue","MTX150P","p84"]
[null,null,null,null,"搾乳関係機械装置","ストランゴ","ヘリンボーンタイプ","p120",null,null,null,null,null,null,null,null,"搾乳関係機械装置","ボーマチック","AMI5550",null,null,null,null,null,"飼料給与関係機械装置","デラバル","シャトルECO",null,"飼料給与関係機械装置","大宮製作所","39型","p56","飼料給与関係機械装置","フォースターテクニック","FC-PRD2EB50","p82",null,null,null,null,"飼料給与関係機械装置","VALMETAL","E42","p72",null,null,null,null,null,null,null,null,"家畜飼養管理機械装置","太平洋工業","CAPSULE SENSE","p329","家畜飼養管理機械装置","ネットカメラ","ドームNET-WC02-01CW",null,null,null,null,null,null,null,null,null,"家畜飼養管理機械装置","JOZ","ホンダコンビスクレッパー",null,"飼料給与関係機械装置","Holm & Laue","MTX260","p84"]
[null,null,null,null,"搾乳関係機械装置","GEA","マグナム90iVL","p113",null,null,null,null,null,null,null,null,"搾乳関係機械装置","SAC","UNICO1",null,null,null,null,null,"飼料給与関係機械装置","チュウチク","BB800","p54","飼料給与関係機械装置","大宮製作所","51型","p56","飼料給与関係機械装置","フォースターテクニック","FC-KRD1EB25","p82",null,null,null,null,"飼料給与関係機械装置","VALMETAL","E60","p72",null,null,null,null,null,null,null,null,"家畜飼養管理機械装置","afimilk","アフィタグⅡ（脚用）","p326","家畜飼養管理機械装置","ネットカメラ","ドームプロNET-WC03-01CT",null,null,null,null,null,null,null,null,null,"家畜飼養管理機械装置","パッツ","インテリチェーン",null,"飼料給与関係機械装置","Holm & Laue","MTX260P","p84"]
[null,null,null,null,"搾乳関係機械装置","GEA","グローバル90VL",null,null,null,null,null,null,null,null,null,"搾乳関係機械装置","SAC","IDC Tリート",null,null,null,null,null,"飼料給与関係機械装置","チュウチク","BB1000","p54","飼料給与関係機械装置","大宮製作所","T60型","p56","飼料給与関係機械装置","フォースターテクニック","FC-KRD2EB50","p82",null,null,null,null,"飼料給与関係機械装置","チュウチク","CF-30D","p53",null,null,null,null,null,null,null,null,"家畜飼養管理機械装置","afimilk","アフィカラー（首用）","p326","家畜飼養管理機械装置","ネットカメラ","ドームプロNET-WC03-01CW",null,null,null,null,null,null,null,null,null,"家畜飼養管理機械装置","パッツ","インテリケーブル",null,"飼料給与関係機械装置","ウーバン","MS-100"]
[null,null,null,null,"搾乳関係機械装置","GEA","グローバル90i",null,null,null,null,null,null,null,null,null,"搾乳関係機械装置","オリオン機械","OCR2000B",null,null,null,null,null,"飼料給与関係機械装置","チュウチク","DM-400SL","p53","飼料給与関係機械装置","大宮製作所","600型","p55","飼料給与関係機械装置","フォースターテクニック","FC-PIF2EB50","p82",null,null,null,null,"飼料給与関係機械装置","チュウチク","CF-40D","p53",null,null,null,null,null,null,null,null,"家畜飼養管理機械装置","afmilk","アフィアクトⅡ","p321","家畜飼養管理機械装置","キャノン","VB-M741LE",null,null,null,null,null,null,null,null,null,"家畜飼養管理機械装置","ストランゴ","バーンスクレイパー",null,"飼料給与関係機械装置","ウーバン","MS-150"]
[null,null,null,null,"搾乳関係機械装置","GEA","チャレンジャー90","p113",null,null,null,null,null,null,null,null,"搾乳関係機械装置","ミルクライン","MILKIT200",null,null,null,null,null,"飼料給与関係機械装置","チュウチク","DM-600SL","p53","飼料給与関係機械装置","大宮製作所","1000型","p55","飼料給与関係機械装置","フォースターテクニック","FC-KIF2EB50","p82",null,null,null,null,"飼料給与関係機械装置","チュウチク","CF-50D","p53",null,null,null,null,null,null,null,null,"家畜飼養管理機械装置","LELY","H-LD",null,"家畜飼養管理機械装置","キャノン","AXIS M2026-LE",null,null,null,null,null,null,null,null,null,"家畜飼養管理機械装置","デラバル","HCR60","p286","飼料給与関係機械装置","ウーバン","MS-200"]
[null,null,null,null,"搾乳関係機械装置","ミルクライン","ミルプロP4C","p115",null,null,null,null,null,null,null,null,"搾乳関係機械装置","InｔerPuls","ACRC/DVC1000",null,null,null,null,null,"飼料給与関係機械装置","チュウチク","DM-800SL","p53","飼料給与関係機械装置","大宮製作所","1400型","p55","飼料給与関係機械装置","フォースターテクニック","TAP5-VS1-30",null,null,null,null,null,"飼料給与関係機械装置","チュウチク","CL-30D","p53",null,null,null,null,null,null,null,null,"家畜飼養管理機械装置","LELY","HR-LDn",null,"家畜飼養管理機械装置","ソリッド","IPC-07W",null,null,null,null,null,null,null,null,null,"家畜飼養管理機械装置","デラバル","AKD140","p286"]
[null,null,null,null,"搾乳関係機械装置","TDM","LUCY",null,null,null,null,null,null,null,null,null,null,null,null,null,null,null,null,null,"飼料給与関係機械装置","チュウチク","DM-1000SL","p53","飼料給与関係機械装置","大宮製作所","S100型","p55","飼料給与関係機械装置","フォースターテクニック","TAK5-VS2-60",null,null,null,null,null,"飼料給与関係機械装置","チュウチク","CL-40D","p53",null,null,null,null,null,null,null,null,"家畜飼養管理機械装置","デラバル","AM2","p324","家畜飼養管理機械装置","ソリッド","IPC-16W",null,null,null,null,null,null,null,null,null,"家畜飼養管理機械装置","デラバル","AKD250","p286"]
[null,null,null,null,"搾乳関係機械装置","デラバル","P500","p111",null,null,null,null,null,null,null,null,null,null,null,null,null,null,null,null,"飼料給与関係機械装置","チュウチク","DM-1200SL","p53","飼料給与関係機械装置","長野クリエート","CK-38","p57","飼料給与関係機械装置","ストランゴ（フォースターテクニック）","TAP5-VS2",null,null,null,null,null,"飼料給与関係機械装置","チュウチク","CL-50D","p53",null,null,null,null,null,null,null,null,"家畜飼養管理機械装置","デラバル","HN100","p325","家畜飼養管理機械装置","デラバル","FMC-IP1"]
[null,null,null,null,"搾乳関係機械装置","デラバル","P2100","p111",null,null,null,null,null,null,null,null,null,null,null,null,null,null,null,null,"飼料給与関係機械装置","チュウチク","DM-1500SL","p53","飼料給与関係機械装置","長野クリエート","CK-50","p57","飼料給与関係機械装置","フォースターテクニック","CF-130",null,null,null,null,null,"飼料給与関係機械装置","チュウチク","CL-70D","p53",null,null,null,null,null,null,null,null,"家畜飼養管理機械装置","デラバル","HN500","p325","家畜飼養管理機械装置","ティーピーアイ","QBO-7080RN/TE"]
[null,null,null,null,"搾乳関係機械装置","ボーマチック","Xcalibur 90LX","p119",null,null,null,null,null,null,null,null,null,null,null,null,null,null,null,null,"飼料給与関係機械装置","チュウチク","DM-1700SL","p53","飼料給与関係機械装置","長野クリエート","WK-38","p57","飼料給与関係機械装置","フォースターテクニック","CF-230",null,null,null,null,null,"飼料給与関係機械装置","チュウチク","CL-80D","p53",null,null,null,null,null,null,null,null,"家畜飼養管理機械装置","SEMEX","ai24-首用","p323","家畜飼養管理機械装置","ユニモテクノロジー","USC-A201R"]
[null,null,null,null,"搾乳関係機械装置","SAC","SAC サイドバイサイド",null,null,null,null,null,null,null,null,null,null,null,null,null,null,null,null,null,"飼料給与関係機械装置","チュウチク","DM-2000SL","p53","飼料給与関係機械装置","長野クリエート","WK-50","p57","飼料給与関係機械装置","フォースターテクニック","CF-260",null,null,null,null,null,"飼料給与関係機械装置","チュウチク","CL-100D","p53",null,null,null,null,null,null,null,null,"家畜飼養管理機械装置","ボーマチック","リアルタイム＋",null,"家畜飼養管理機械装置","ユアーズ","AUR-PTZCAM"]
[null,null,null,null,"搾乳関係機械装置","ストランゴ","ターナー社ストール","p120",null,null,null,null,null,null,null,null,null,null,null,null,null,null,null,null,"飼料給与関係機械装置","ペロン","TR1500","p71","飼料給与関係機械装置","長野クリエート","S-50","p58","飼料給与関係機械装置","BRITMILK","ID-TEK",null,null,null,null,null,"飼料給与関係機械装置","チュウチク","FC-600","p73",null,null,null,null,null,null,null,null,"家畜飼養管理機械装置","P.A.テクノロジー","モ～タム24",null,"家畜飼養管理機械装置","アベテック","BB-SW172A"]
[null,null,null,null,"搾乳関係機械装置","ベコデーリィオートメーション","ベコ・パラレルパーラー","p114",null,null,null,null,null,null,null,null,null,null,null,null,null,null,null,null,"飼料給与関係機械装置","ペロン","TR2000コンビ","p71","飼料給与関係機械装置","長野クリエート","S-75","p58","飼料給与関係機械装置","Holm & Laue","カーフエクスパート","p83",null,null,null,null,"飼料給与関係機械装置","チュウチク","FC-1000","p73",null,null,null,null,null,null,null,null,"家畜飼養管理機械装置","SAC","MDS Unitrack",null,"家畜飼養管理機械装置","ノーリツプレシジョン","NU-A11","p331"]
[null,null,null,null,"搾乳関係機械装置","フルウッド","QS",null,null,null,null,null,null,null,null,null,null,null,null,null,null,null,null,null,"飼料給与関係機械装置","ペロン","TR2500","p71","飼料給与関係機械装置","長野クリエート","S-90","p58",null,null,null,null,null,null,null,null,"飼料給与関係機械装置","ジェイムスウエイ","3355B",null,null,null,null,null,null,null,null,null,"家畜飼養管理機械装置","フルウッド","クリスタル",null,"家畜飼養管理機械装置","NSS","NSC=AHD942VPU-F"]
[null,null,null,null,"搾乳関係機械装置","フルウッド","INDEX90","p117",null,null,null,null,null,null,null,null,null,null,null,null,null,null,null,null,"飼料給与関係機械装置","ペロン","TR3000コンビ","p71","飼料給与関係機械装置","オカドハザック","MS-1S-550TPBD",null,null,null,null,null,null,null,null,null,"飼料給与関係機械装置","ジェイムスウエイ","4390B",null,null,null,null,null,null,null,null,null,"家畜飼養管理機械装置","ストランゴ","アクトメーター",null,"家畜飼養管理機械装置","ガーミチューナー","TYPE2"]
[null,null,null,null,"搾乳関係機械装置","GEA","ユーロクラス1200","p113",null,null,null,null,null,null,null,null,null,null,null,null,null,null,null,null,"飼料給与関係機械装置","ペロン","TMRフィーダー","p71","飼料給与関係機械装置","オカドハザック","MS-2S-1400TPBD",null,null,null,null,null,null,null,null,null,"飼料給与関係機械装置","ジェイムスウエイ","5390B",null,null,null,null,null,null,null,null,null,"家畜飼養管理機械装置","ストランゴ","アクティビティタグ-首用",null,"家畜飼養管理機械装置","大英システム","牛監視カメラ"]
[null,null,null,null,"搾乳関係機械装置","GEA","ユーロクラス1200RE","p113",null,null,null,null,null,null,null,null,null,null,null,null,null,null,null,null,"飼料給与関係機械装置","ペロン","ベルトフィーダー",null,"飼料給与関係機械装置","藤樹運搬機工業","FK-50型",null,null,null,null,null,null,null,null,null,"飼料給与関係機械装置","ジェイムスウエイ","73110B",null,null,null,null,null,null,null,null,null,"家畜飼養管理機械装置","ストランゴ","アクティビティタグ-脚用",null,"家畜飼養管理機械装置","\tCore-Business","e-CAM"]
[null,null,null,null,"搾乳関係機械装置","GEA","ユーロクラス800","p113",null,null,null,null,null,null,null,null,null,null,null,null,null,null,null,null,"飼料給与関係機械装置","ロビベック",924400,"p64","飼料給与関係機械装置","明治機械","スカイサーバー",null,null,null,null,null,null,null,null,null,"飼料給与関係機械装置","ジェイムスウエイ","93110B",null,null,null,null,null,null,null,null,null,"家畜飼養管理機械装置","ファームノート","ファームノートカラー","p328","家畜飼養管理機械装置","コアーサポート","MOWCAM","p335"]
[null,null,null,null,"搾乳関係機械装置","デラバル","HB30°","p112",null,null,null,null,null,null,null,null,null,null,null,null,null,null,null,null,"飼料給与関係機械装置","ロビベック",926592,"p64","飼料給与関係機械装置","オリオン機械","FMAG350","p68",null,null,null,null,null,null,null,null,"飼料給与関係機械装置","ウィバーライン","M531","p71",null,null,null,null,null,null,null,null,"家畜飼養管理機械装置","ミルクライトインターパルス","UHF-HD",null,"家畜飼養管理機械装置","太平洋工業","CAPSULE SENSE","p329"]
[null,null,null,null,"搾乳関係機械装置","デラバル","HB50°","p112",null,null,null,null,null,null,null,null,null,null,null,null,null,null,null,null,"飼料給与関係機械装置","ロビベック",928783,"p64","飼料給与関係機械装置","オリオン機械","FMAG440","p68",null,null,null,null,null,null,null,null,"飼料給与関係機械装置","ウィバーライン","M537","p71",null,null,null,null,null,null,null,null,"家畜飼養管理機械装置","ネダップ","首用（Integrate）","p325"]
[null,null,null,null,"搾乳関係機械装置","ボーマチック","GT2",null,null,null,null,null,null,null,null,null,null,null,null,null,null,null,null,null,"飼料給与関係機械装置","ロビベック",930975,"p64","飼料給与関係機械装置","デラバル","ORW","p66",null,null,null,null,null,null,null,null,"飼料給与関係機械装置","ウィバーライン","M521","p71",null,null,null,null,null,null,null,null,"家畜飼養管理機械装置","ネダップ","VelosシステムVP1"]
[null,null,null,null,"搾乳関係機械装置","SAC","SAC ヘリンボーンパーラー",null,null,null,null,null,null,null,null,null,null,null,null,null,null,null,null,null,"飼料給与関係機械装置","ロビベック","DEC-HDR","p64","飼料給与関係機械装置","デラバル","FW200","p66",null,null,null,null,null,null,null,null,"飼料給与関係機械装置","ウィバーライン","M525","p71",null,null,null,null,null,null,null,null,"家畜飼養管理機械装置","ファーマーズサポート","発情検知システム"]
[null,null,null,null,"搾乳関係機械装置","ストランゴ","ヘリングボーンパーラー",null,null,null,null,null,null,null,null,null,null,null,null,null,null,null,null,null,"飼料給与関係機械装置","ロビベック","ROVER-MVR","p64","飼料給与関係機械装置","デラバル","オプティフィーダーOFP","p67",null,null,null,null,null,null,null,null,"飼料給与関係機械装置","緑産","ＦＫＧ90/450","p46"]
[null,null,null,null,"搾乳関係機械装置","ベコデーリィオートメーション","ベコ・へリングボーンパーラー","p114",null,null,null,null,null,null,null,null,null,null,null,null,null,null,null,null,"飼料給与関係機械装置","大宮製作所","FMR-1H","p70","飼料給与関係機械装置","ペロン",300,"p71",null,null,null,null,null,null,null,null,"飼料給与関係機械装置","緑産","ＦＫＤ90/450"]
[null,null,null,null,"搾乳関係機械装置","フルウッド","HB50i",null,null,null,null,null,null,null,null,null,null,null,null,null,null,null,null,null,"飼料給与関係機械装置","大宮製作所","FMR-2H","p70","飼料給与関係機械装置","ペロン",400,"p71",null,null,null,null,null,null,null,null,"飼料給与関係機械装置","緑産","ＦＫＧ70/450","p46"]
[null,null,null,null,"搾乳関係機械装置","BETEBE","BTB2×6-80°　",null,null,null,null,null,null,null,null,null,null,null,null,null,null,null,null,null,"飼料給与関係機械装置","大宮製作所","FMR-3H","p70","飼料給与関係機械装置","ペロン",600,"p71",null,null,null,null,null,null,null,null,"飼料給与関係機械装置","緑産","ＦＫＤ70/450"]
[null,null,null,null,"搾乳関係機械装置","BETEBE","BTB2×8-80°　",null,null,null,null,null,null,null,null,null,null,null,null,null,null,null,null,null,"飼料給与関係機械装置","大宮製作所","FMR-4H","p70","飼料給与関係機械装置","ペロン","2W 400/600","p71",null,null,null,null,null,null,null,null,"飼料給与関係機械装置","緑産","ＦＫＧ110/450","p46"]
[null,null,null,null,"搾乳関係機械装置","BETEBE","BTB2×6-60°　",null,null,null,null,null,null,null,null,null,null,null,null,null,null,null,null,null,"飼料給与関係機械装置","トリオリット社","WP300",null,"飼料給与関係機械装置","ロビベック","ROV4000","p64",null,null,null,null,null,null,null,null,"飼料給与関係機械装置","緑産","ＦＫＤ110/450"]
[null,null,null,null,"搾乳関係機械装置","BETEBE","BTB2×8-60°　",null,null,null,null,null,null,null,null,null,null,null,null,null,null,null,null,null,null,null,null,null,null,null,null,null,null,null,null,null,null,null,null,null,"飼料給与関係機械装置","緑産","ＦＢ30/400"]
[null,null,null,null,"搾乳関係機械装置","ストランゴ","個別退出方式",null,null,null,null,null,null,null,null,null,null,null,null,null,null,null,null,null,null,null,null,null,null,null,null,null,null,null,null,null,null,null,null,null,"飼料給与関係機械装置","緑産","ＦＬ110/500"]
[null,null,null,null,"搾乳関係機械装置","オリオン機械","PMH76SJ-SW",null,null,null,null,null,null,null,null,null,null,null,null,null,null,null,null,null,null,null,null,null,null,null,null,null,null,null,null,null,null,null,null,null,"飼料給与関係機械装置","緑産","ＦＬ130/500"]
[null,null,null,null,"搾乳関係機械装置","オリオン機械","PMH64SJ-SW　",null,null,null,null,null,null,null,null,null,null,null,null,null,null,null,null,null,null,null,null,null,null,null,null,null,null,null,null,null,null,null,null,null,"飼料給与関係機械装置","緑産","ＦＬ150/500"]
[null,null,null,null,"搾乳関係機械装置","デラバル","ML3100",null,null,null,null,null,null,null,null,null,null,null,null,null,null,null,null,null,null,null,null,null,null,null,null,null,null,null,null,null,null,null,null,null,"飼料給与関係機械装置","緑産","ＦＬ170/500"]
[null,null,null,null,"搾乳関係機械装置","SAC","SAC スイングオーバー",null,null,null,null,null,null,null,null,null,null,null,null,null,null,null,null,null,null,null,null,null,null,null,null,null,null,null,null,null,null,null,null,null,"飼料給与関係機械装置","緑産","ＳＧ50RE/400","p46"]
[null,null,null,null,"搾乳関係機械装置","GEA","オートタンデムパーラー","p113",null,null,null,null,null,null,null,null,null,null,null,null,null,null,null,null,null,null,null,null,null,null,null,null,null,null,null,null,null,null,null,null,"飼料給与関係機械装置","緑産","ＳＧ70RE/450","p46"]
[null,null,null,null,"搾乳関係機械装置","ストランゴ","タンデムパーラー",null,null,null,null,null,null,null,null,null,null,null,null,null,null,null,null,null,null,null,null,null,null,null,null,null,null,null,null,null,null,null,null,null,"飼料給与関係機械装置","緑産","ＳＧ90RE/450","p46"]
[null,null,null,null,"搾乳関係機械装置","オリオン機械","PMH76SJ-P",null,null,null,null,null,null,null,null,null,null,null,null,null,null,null,null,null,null,null,null,null,null,null,null,null,null,null,null,null,null,null,null,null,"飼料給与関係機械装置","緑産","ＳＧ110RE/450","p46"]
[null,null,null,null,"搾乳関係機械装置","オリオン機械","PMH64SJ-P","p114",null,null,null,null,null,null,null,null,null,null,null,null,null,null,null,null,null,null,null,null,null,null,null,null,null,null,null,null,null,null,null,null,"飼料給与関係機械装置","緑産","ＳＧ110RE/500","p46"]
[null,null,null,null,null,null,null,null,null,null,null,null,null,null,null,null,null,null,null,null,null,null,null,null,null,null,null,null,null,null,null,null,null,null,null,null,null,null,null,null,"飼料給与関係機械装置","緑産","ＳＧ130RE/500","p46"]
[null,null,null,null,null,null,null,null,null,null,null,null,null,null,null,null,null,null,null,null,null,null,null,null,null,null,null,null,null,null,null,null,null,null,null,null,null,null,null,null,"飼料給与関係機械装置","緑産","ＳＧ150RE/500","p46"]
[null,null,null,null,null,null,null,null,null,null,null,null,null,null,null,null,null,null,null,null,null,null,null,null,null,null,null,null,null,null,null,null,null,null,null,null,null,null,null,null,"飼料給与関係機械装置","緑産","ＳＧ170RE/500","p46"]
[null,null,null,null,null,null,null,null,null,null,null,null,null,null,null,null,null,null,null,null,null,null,null,null,null,null,null,null,null,null,null,null,null,null,null,null,null,null,null,null,"飼料給与関係機械装置","スガルボルディ","KOALA2.5MD/S"]
[null,null,null,null,null,null,null,null,null,null,null,null,null,null,null,null,null,null,null,null,null,null,null,null,null,null,null,null,null,null,null,null,null,null,null,null,null,null,null,null,"飼料給与関係機械装置","スガルボルディ","KOALA4.5MD/S"]
[null,null,null,null,null,null,null,null,null,null,null,null,null,null,null,null,null,null,null,null,null,null,null,null,null,null,null,null,null,null,null,null,null,null,null,null,null,null,null,null,"飼料給与関係機械装置","岡田製作所","700LT"]
[null,null,null,null,null,null,null,null,null,null,null,null,null,null,null,null,null,null,null,null,null,null,null,null,null,null,null,null,null,null,null,null,null,null,null,null,null,null,null,null,"飼料給与関係機械装置","タカキタ","EF2030"]
[null,null,null,null,null,null,null,null,null,null,null,null,null,null,null,null,null,null,null,null,null,null,null,null,null,null,null,null,null,null,null,null,null,null,null,null,null,null,null,null,"飼料給与関係機械装置","タカキタ","EF2040"]
[null,null,null,null,null,null,null,null,null,null,null,null,null,null,null,null,null,null,null,null,null,null,null,null,null,null,null,null,null,null,null,null,null,null,null,null,null,null,null,null,"飼料給与関係機械装置","タカキタ","EF2630"]
[null,null,null,null,null,null,null,null,null,null,null,null,null,null,null,null,null,null,null,null,null,null,null,null,null,null,null,null,null,null,null,null,null,null,null,null,null,null,null,null,"飼料給与関係機械装置","フジキ","EY8-40G"]

{"sheet":"機械装置リスト_隠し","index":5,"n_rows":23,"n_cols":75,"rows_kept":23,"cut":false,"hidden":true,"merged":[]}
[]
[]
[]
["搾乳関係機械装置",null,null,null,null,null,null,null,null,null,null,null,null,null,null,null,null,null,null,null,null,"オリオン機械",null,null,null,"GEA","Mix Feeder XL",null,null,"中嶋製作所",null,null,null,"フォースターテクニック","TAP5-VS2-30",null,null,"GEA",null,null,null,"JAY・LOR",5100,null,null,"新興和産業","ホシカッター",null,null,"オリオン機械","BSMA08",null,null,null,null,null,null,"デザミス",null,null,null,"デザミス","U-motion DU-RE01・DU-TG01",null,null,"М・Ｓ・Ｋ","MTK-GNT02",null,null,"デボア","HCR60",null,null,"フォースターテクニック","ミルクモービル200L"]
[null,null,null,null,null,null,null,null,null,null,null,null,null,null,null,null,null,null,null,null,null,"フューチャーカウ",null,null,null,"オリオン機械","M2000",null,null,"大宮製作所",null,null,null,"LELY（フォースターテクニック）","TAK5-VS2-30",null,null,"JOZ",null,null,null,"WIC",5050,null,null,"チュウチク",null,null,null,"VALMETAL",null,null,null,null,null,null,null,"ソニーエンジニアリング",null,null,null,"ファームノート",null,null,null,"GEAフール",null,null,null,"GEA","AKD140",null,null,"デラバル","ミルクモービル120L"]
[null,null,null,null,null,null,null,null,null,null,null,null,null,null,null,null,null,null,null,null,null,"プリシステム",null,null,null,"One 2 Feed","M3000",null,null,"長野クリエート",null,null,null,"デラバル","スターターフィーダー",null,null,"LELY",null,null,null,"VALMETAL",null,null,null,"ジェメリ",null,null,null,"Wasserbauer",null,null,null,null,null,null,null,null,null,null,null,"uLikeKorea",null,null,null,"福地工業",null,null,null,"GEAフール","AKD250",null,null,"Holm & Laue","MDK4-200-37-03"]
[null,null,null,null,null,null,null,null,null,null,null,null,null,null,null,null,null,null,null,null,null,"ウェスター",null,null,null,"LELY",null,null,null,"オカドハザック",null,null,null,"ストランゴ（フォースターテクニック）","CRS2-IF1-WH",null,null,"ボーマチック",null,null,null,"チュウチク",null,null,null,"ロビベック",null,null,null,null,null,null,null,null,null,null,null,null,null,null,null,"太平洋工業",null,null,null,"JOZ",null,null,null,"福地工業",null,null,null,"ウーバン","MDK4-200-37-04"]
[null,null,null,null,null,null,null,null,null,null,null,null,null,null,null,null,null,null,null,null,null,"デラバル",null,null,null,"デラバル",null,null,null,"藤樹運搬機工業",null,null,null,"BRITMILK","VARIO+",null,null,"Wasserbauer",null,null,null,"ジェイムスウエイ",null,null,null,"STAR",null,null,null,null,null,null,null,null,null,null,null,null,null,null,null,null,null,null,null,"パッツ",null,null,null,"JOZ",null,null,null,null,"MDK4-120-37-03"]
[null,null,null,null,null,null,null,null,null,null,null,null,null,null,null,null,null,null,null,null,null,null,null,null,null,"チュウチク",null,null,null,"明治機械",null,null,null,"Holm & Laue","CRS2-IF1-WH",null,null,"デラバル",null,null,null,"ウィバーライン",null,null,null,null,null,null,null,null,null,null,null,null,null,null,null,null,null,null,null,null,null,null,null,"ストランゴ",null,null,null,"パッツ",null,null,null,null,"MDK4-120-37-04"]
[null,null,null,null,null,null,null,null,null,null,null,null,null,null,null,null,null,null,null,null,null,null,null,null,null,"ペロン",null,null,null,"オリオン機械",null,null,null,null,"CRS2-IF1-WH　　",null,null,"緑産",null,null,null,"緑産",null,null,null,null,null,null,null,null,null,null,null,null,null,null,null,null,null,null,null,null,null,null,null,"デラバル",null,null,null,"ストランゴ"]
[null,null,null,null,null,null,null,null,null,null,null,null,null,null,null,null,null,null,null,null,null,null,null,null,null,"ロビベック",null,null,null,"デラバル",null,null,null,null,"FC-PRD1EB25",null,null,"スガルボルディ",null,null,null,"スガルボルディ",null,null,null,null,null,null,null,null,null,null,null,null,null,null,null,null,null,null,null,null,null,null,null,"渋谷",null,null,null,"デラバル"]
[null,null,null,null,null,null,null,null,null,null,null,null,null,null,null,null,null,null,null,null,null,null,null,null,null,"大宮製作所",null,null,null,"ペロン",null,null,null,null,"FC-PRD2EB50",null,null,"岡田製作所",null,null,null,"岡田製作所"]
[null,null,null,null,null,null,null,null,null,null,null,null,null,null,null,null,null,null,null,null,null,null,null,null,null,"トリオリット社",null,null,null,"ロビベック",null,null,null,null,"FC-KRD1EB25",null,null,"タカキタ",null,null,null,"タカキタ"]
[null,null,null,null,null,null,null,null,null,null,null,null,null,null,null,null,null,null,null,null,null,null,null,null,null,"長野クリエート",null,null,null,null,null,null,null,null,"FC-KRD2EB50",null,null,"オカドバザック",null,null,null,"フジキ"]
[null,null,null,null,null,null,null,null,null,null,null,null,null,null,null,null,null,null,null,null,null,null,null,null,null,"長野クリエート",null,null,null,null,null,null,null,null,"FC-PIF2EB50",null,null,"フジキ"]
[null,null,null,null,null,null,null,null,null,null,null,null,null,null,null,null,null,null,null,null,null,null,null,null,null,null,null,null,null,null,null,null,null,null,"FC-KIF2EB50"]
[null,null,null,null,null,null,null,null,null,null,null,null,null,null,null,null,null,null,null,null,null,null,null,null,null,null,null,null,null,null,null,null,null,null,"TAP5-VS1-30"]
[null,null,null,null,null,null,null,null,null,null,null,null,null,null,null,null,null,null,null,null,null,null,null,null,null,null,null,null,null,null,null,null,null,null,"TAK5-VS2-60"]
[null,null,null,null,null,null,null,null,null,null,null,null,null,null,null,null,null,null,null,null,null,null,null,null,null,null,null,null,null,null,null,null,null,null,"CF-130"]
[null,null,null,null,null,null,null,null,null,null,null,null,null,null,null,null,null,null,null,null,null,null,null,null,null,null,null,null,null,null,null,null,null,null,"CF-220"]
[null,null,null,null,null,null,null,null,null,null,null,null,null,null,null,null,null,null,null,null,null,null,null,null,null,null,null,null,null,null,null,null,null,null,"CF-230"]
[null,null,null,null,null,null,null,null,null,null,null,null,null,null,null,null,null,null,null,null,null,null,null,null,null,null,null,null,null,null,null,null,null,null,"CF-260"]
[null,null,null,null,null,null,null,null,null,null,null,null,null,null,null,null,null,null,null,null,null,null,null,null,null,null,null,null,null,null,null,null,null,null,"CFK-260"]